Workbook

Sheet EXPLANATION
B4: DISCLAIMER
B6: - GTS only provide's this file as service, no rights whatsoever may be derived from these calculations, shipper' bookings and GTS Invoices are leading.
B7: - Tariffs used in the calculation are the total prices for 2024
B8: - Total price is the sum of the all-in transmission tariff and the neutrality charge, whereby:
B9: - transmission tariffs for 2024 are established by the Dutch regulator ACM (25 May 2023)
B10: - neutrality charges for 2024 are established by GTS in accordance with the calculation methodology as stated in de Transmission Code Gas TSO
C11: https://www.gasunietransportservices.nl/en/news/tariffs-decision-2024
B12: - Multipliers and seasonal factors used as establish by the Duth regulator ACM in the NC TAR decision (11 December 2018):
C13: https://www.gasunietransportservices.nl/en/news/acm-takes-a-final-decision-on-the-tariff-structure-of-gts
B15: LEGEND
B17: GREEN | E17: Input cells to be filled out by user
B18: BLUE | E18: Fixed input data
B19: YELLOW | E19: Calculated value
B20: ORANGE | E20: Calculated resulting value
B21: BLACK | E21: Information sheets (this explanation sheet and sheets with calculation of the total prices)
B23: EXPLANATION CALCULATION TOOL PERIOD BOOKING
B25: Introduction
B26: This tool converts a flat (non-profiled) booking for a booking period of less than one year into an optimum combination of yearly, quarterly, monthly and daily capacity products. The tool determines the cheapest combination in line with (a) - (c) of the 'optimisation paragraphs' of described in article 2.1.2. of the Transmission Code Gas TSO (quote):
B30: “If a recognised programme-responsible party or connected parties with exit capacity at domestic entry and exit points contract entry or exit capacity at an entry or exit point on the same day in any given combination of quarterly, monthly, and daily capacity products, the network operator of the national gas transmission grid shall, at the request of the recognised programme-responsible party or connected parties with exit capacity, do the following for each tranche of the same quantity of contracted entry or exit capacity:
B35: a. | C35: If the payable price for the combination of contracted quarterly, monthly, and daily capacity products is greater than the price of a yearly capacity product, then the yearly capacity product shall be contracted for the tranche in question, provided the required capacity is available at the relevant entry or exit point;
B39: b. | C39: If the payable price for the combination of contracted monthly and daily capacity products in one gas quarter is greater than the price of the relevant quarterly capacity product, then the relevant quarterly capacity product shall be contracted, provided the required capacity is available at the relevant entry or exit point; or
B43: c. | C43: If the payable price for the combination of contracted daily capacity products in one month is greater than the payable price for the monthly capacity product, then the relevant monthly capacity product shall be contracted, provided the required capacity is available at the relevant entry or exit point.”
B47: The main steps in the optimisation are
B49: * | C49: the period booking is converted into non-optimised subsequent capacity products;
B51: * | C51: if the payable price for the combination of daily capacity products in one month is greater than the payable price for the monthly capacity product, then the relevant monthly capacity products applies;
B54: * | C54: if the payable price for the combination of monthly and daily capacity products in one gas quarter is greater than the price of the relevant quarterly capacity products, then the relevant quarterly capacity product applies;
B57: * | C57: if the payable price for the combination of quarterly, monthly and daily capacity products is greater than the price for a yearly capacity product, then the relevant yearly capacity product applies. When the by the shipper chosen period leads to less than 12 consecutive months in the yearly booking, shipper is requested to adjust the start or end date creating 12 consecutive months in the yearly booking.
B61: Output
B62: For the period of shipper’s choosing the resulting capacity products are shown including the corresponding estimated monthly invoice (based on 2024 total price).
B65: Disclaimer
B66: This calculation tool advises shippers the cheapest combination of capacity products, based on the given input. Shippers obviously remain responsible for (timely) contracting the right (combination of) capacity products themselves. No rights or whatsoever can be derived from this calculation tool.

Sheet Period booking
B4: CALCULATION TOOL FOR OPTIMISATION OF PERIOD BOOKINGS INTO (Y, Q, M, DA) FIRM CAPACITY PRODUCTS
B6: Please fill in the appropriate values in the GREEN fields and find the optimalisation results below
B8: Start date | C8: =IF(OR(ISERROR(DAY($D$8)),ISERROR(DAY($D$9))),1,IF(OR($D$9<$D$8,$D$9>$D$8+366,$D$11<0),1,0)) -> 0 | D8: 2024-01-01 | E8: =IF(OR(ISERROR(DAY($D$8)),ISERROR(DAY($D$9))),"WARNING: calculation not reliable due to incorrect start or end date; please correct!",IF(D9<D8,"WARNING: calculation not reliable due to incorrect start and end date (start date NOT before end date); please correct!",IF(D9>D8+366," WARNING: calculation not reliable due to incorrect start and end date (period > 1 year), please correct!",""))) -> 
B9: End date (including) | D9: 2024-12-31 | E9: =IF(Optimalisation!$T$53=11,"REMARK: for this period a yearly booking is cheaper; please add 12th month to period for monthly cost estimate!",IF(Optimalisation!$T$53=10,"REMARK: for this period a yearly booking is cheaper; please add 11th and 12th month to period for monthly cost estimate!",IF(Optimalisation!$T$53=9,"REMARK: for this period a yearly booking is cheaper; please add 10th, 11th and 12th month to period for monthly cost estimate!",""))) -> 
B10: Postage stamp point | D10: Entry non-SSO | E10: For all dates/periods, the prices used in the calculation tool are the total prices 2024 (see sheet 'Explanation')
B11: Quantity | C11: kWh/h | D11: 100 | E11: =IF(D11<0,"WARNING: quantity is negative, please correct to positive value!","") -> 
B13: PERIOD BOOKING CONVERTED INTO OPTIMISED COMBINATION OF Y, Q, M, DA CAPACITY PRODUCTS
B15: Month | C15: Year | D15: Yearly capacity booking | E15: Quarterly capacity booking | F15: Monthly capacity booking | G15: Daily capacity booking | H15: Cost/month based on 2024 tariffs
D16: kWh/h | E16: kWh/h | F16: kWh/h | G16: kWh/h | H16: EUR
G18: Total cost: | H18: =SUM(H19:H42) -> € 224
B19: January | C19: =IF($C$8=1,"",YEAR(D$8)) -> 2024 | D19: =IF($C$8=1,"",Optimalisation!Y29) -> Y | E19: =IF($C$8=1,"",Optimalisation!Z29) ->  | F19: =IF($C$8=1,"",Optimalisation!AA29) ->  | G19: =IF($C$8=1,"",Optimalisation!AB29) ->  | H19: =IF($C$8=1,"",Optimalisation!X29) -> € 19
B20: February | C20: =IF($C$8=1,"",YEAR(D$8)) -> 2024 | D20: =IF($C$8=1,"",Optimalisation!Y30) -> Y | E20: =IF($C$8=1,"",Optimalisation!Z30) ->  | F20: =IF($C$8=1,"",Optimalisation!AA30) ->  | G20: =IF($C$8=1,"",Optimalisation!AB30) ->  | H20: =IF($C$8=1,"",Optimalisation!X30) -> € 18
B21: March | C21: 2024 | D21: =IF($C$8=1,"",Optimalisation!Y31) -> Y | E21: =IF($C$8=1,"",Optimalisation!Z31) ->  | F21: =IF($C$8=1,"",Optimalisation!AA31) ->  | G21: =IF($C$8=1,"",Optimalisation!AB31) ->  | H21: =IF($C$8=1,"",Optimalisation!X31) -> € 19
B22: April | C22: 2024 | D22: =IF($C$8=1,"",Optimalisation!Y32) -> Y | E22: =IF($C$8=1,"",Optimalisation!Z32) ->  | F22: =IF($C$8=1,"",Optimalisation!AA32) ->  | G22: =IF($C$8=1,"",Optimalisation!AB32) ->  | H22: =IF($C$8=1,"",Optimalisation!X32) -> € 18
B23: May | C23: 2024 | D23: =IF($C$8=1,"",Optimalisation!Y33) -> Y | E23: =IF($C$8=1,"",Optimalisation!Z33) ->  | F23: =IF($C$8=1,"",Optimalisation!AA33) ->  | G23: =IF($C$8=1,"",Optimalisation!AB33) ->  | H23: =IF($C$8=1,"",Optimalisation!X33) -> € 19
B24: June | C24: 2024 | D24: =IF($C$8=1,"",Optimalisation!Y34) -> Y | E24: =IF($C$8=1,"",Optimalisation!Z34) ->  | F24: =IF($C$8=1,"",Optimalisation!AA34) ->  | G24: =IF($C$8=1,"",Optimalisation!AB34) ->  | H24: =IF($C$8=1,"",Optimalisation!X34) -> € 18
B25: July | C25: 2024 | D25: =IF($C$8=1,"",Optimalisation!Y35) -> Y | E25: =IF($C$8=1,"",Optimalisation!Z35) ->  | F25: =IF($C$8=1,"",Optimalisation!AA35) ->  | G25: =IF($C$8=1,"",Optimalisation!AB35) ->  | H25: =IF($C$8=1,"",Optimalisation!X35) -> € 19
B26: August | C26: 2024 | D26: =IF($C$8=1,"",Optimalisation!Y36) -> Y | E26: =IF($C$8=1,"",Optimalisation!Z36) ->  | F26: =IF($C$8=1,"",Optimalisation!AA36) ->  | G26: =IF($C$8=1,"",Optimalisation!AB36) ->  | H26: =IF($C$8=1,"",Optimalisation!X36) -> € 19
B27: September | C27: 2024 | D27: =IF($C$8=1,"",Optimalisation!Y37) -> Y | E27: =IF($C$8=1,"",Optimalisation!Z37) ->  | F27: =IF($C$8=1,"",Optimalisation!AA37) ->  | G27: =IF($C$8=1,"",Optimalisation!AB37) ->  | H27: =IF($C$8=1,"",Optimalisation!X37) -> € 18
B28: October | C28: 2024 | D28: =IF($C$8=1,"",Optimalisation!Y38) -> Y | E28: =IF($C$8=1,"",Optimalisation!Z38) ->  | F28: =IF($C$8=1,"",Optimalisation!AA38) ->  | G28: =IF($C$8=1,"",Optimalisation!AB38) ->  | H28: =IF($C$8=1,"",Optimalisation!X38) -> € 19
B29: November | C29: 2024 | D29: =IF($C$8=1,"",Optimalisation!Y39) -> Y | E29: =IF($C$8=1,"",Optimalisation!Z39) ->  | F29: =IF($C$8=1,"",Optimalisation!AA39) ->  | G29: =IF($C$8=1,"",Optimalisation!AB39) ->  | H29: =IF($C$8=1,"",Optimalisation!X39) -> € 18
B30: December | C30: 2024 | D30: =IF($C$8=1,"",Optimalisation!Y40) -> Y | E30: =IF($C$8=1,"",Optimalisation!Z40) ->  | F30: =IF($C$8=1,"",Optimalisation!AA40) ->  | G30: =IF($C$8=1,"",Optimalisation!AB40) ->  | H30: =IF($C$8=1,"",Optimalisation!X40) -> € 19
B31: January | C31: =IF($C$8=1,"",YEAR(D$8)+1) -> 2025 | D31: =IF($C$8=1,"",Optimalisation!Y41) ->  | E31: =IF($C$8=1,"",Optimalisation!Z41) ->  | F31: =IF($C$8=1,"",Optimalisation!AA41) ->  | G31: =IF($C$8=1,"",Optimalisation!AB41) ->  | H31: =IF($C$8=1,"",Optimalisation!X41) -> € 0
B32: February | C32: =IF($C$8=1,"",YEAR(D$8)+1) -> 2025 | D32: =IF($C$8=1,"",Optimalisation!Y42) ->  | E32: =IF($C$8=1,"",Optimalisation!Z42) ->  | F32: =IF($C$8=1,"",Optimalisation!AA42) ->  | G32: =IF($C$8=1,"",Optimalisation!AB42) ->  | H32: =IF($C$8=1,"",Optimalisation!X42) -> € 0
B33: March | C33: 2025 | D33: =IF($C$8=1,"",Optimalisation!Y43) ->  | E33: =IF($C$8=1,"",Optimalisation!Z43) ->  | F33: =IF($C$8=1,"",Optimalisation!AA43) ->  | G33: =IF($C$8=1,"",Optimalisation!AB43) ->  | H33: =IF($C$8=1,"",Optimalisation!X43) -> € 0
B34: April | C34: 2025 | D34: =IF($C$8=1,"",Optimalisation!Y44) ->  | E34: =IF($C$8=1,"",Optimalisation!Z44) ->  | F34: =IF($C$8=1,"",Optimalisation!AA44) ->  | G34: =IF($C$8=1,"",Optimalisation!AB44) ->  | H34: =IF($C$8=1,"",Optimalisation!X44) -> € 0
B35: May | C35: 2025 | D35: =IF($C$8=1,"",Optimalisation!Y45) ->  | E35: =IF($C$8=1,"",Optimalisation!Z45) ->  | F35: =IF($C$8=1,"",Optimalisation!AA45) ->  | G35: =IF($C$8=1,"",Optimalisation!AB45) ->  | H35: =IF($C$8=1,"",Optimalisation!X45) -> € 0
B36: June | C36: 2025 | D36: =IF($C$8=1,"",Optimalisation!Y46) ->  | E36: =IF($C$8=1,"",Optimalisation!Z46) ->  | F36: =IF($C$8=1,"",Optimalisation!AA46) ->  | G36: =IF($C$8=1,"",Optimalisation!AB46) ->  | H36: =IF($C$8=1,"",Optimalisation!X46) -> € 0
B37: July | C37: 2025 | D37: =IF($C$8=1,"",Optimalisation!Y47) ->  | E37: =IF($C$8=1,"",Optimalisation!Z47) ->  | F37: =IF($C$8=1,"",Optimalisation!AA47) ->  | G37: =IF($C$8=1,"",Optimalisation!AB47) ->  | H37: =IF($C$8=1,"",Optimalisation!X47) -> € 0
B38: August | C38: 2025 | D38: =IF($C$8=1,"",Optimalisation!Y48) ->  | E38: =IF($C$8=1,"",Optimalisation!Z48) ->  | F38: =IF($C$8=1,"",Optimalisation!AA48) ->  | G38: =IF($C$8=1,"",Optimalisation!AB48) ->  | H38: =IF($C$8=1,"",Optimalisation!X48) -> € 0
B39: September | C39: 2025 | D39: =IF($C$8=1,"",Optimalisation!Y49) ->  | E39: =IF($C$8=1,"",Optimalisation!Z49) ->  | F39: =IF($C$8=1,"",Optimalisation!AA49) ->  | G39: =IF($C$8=1,"",Optimalisation!AB49) ->  | H39: =IF($C$8=1,"",Optimalisation!X49) -> € 0
B40: October | C40: 2025 | D40: =IF($C$8=1,"",Optimalisation!Y50) ->  | E40: =IF($C$8=1,"",Optimalisation!Z50) ->  | F40: =IF($C$8=1,"",Optimalisation!AA50) ->  | G40: =IF($C$8=1,"",Optimalisation!AB50) ->  | H40: =IF($C$8=1,"",Optimalisation!X50) -> € 0
B41: November | C41: 2025 | D41: =IF($C$8=1,"",Optimalisation!Y51) ->  | E41: =IF($C$8=1,"",Optimalisation!Z51) ->  | F41: =IF($C$8=1,"",Optimalisation!AA51) ->  | G41: =IF($C$8=1,"",Optimalisation!AB51) ->  | H41: =IF($C$8=1,"",Optimalisation!X51) -> € 0
B42: December | C42: 2025 | D42: =IF($C$8=1,"",Optimalisation!Y52) ->  | E42: =IF($C$8=1,"",Optimalisation!Z52) ->  | F42: =IF($C$8=1,"",Optimalisation!AA52) ->  | G42: =IF($C$8=1,"",Optimalisation!AB52) ->  | H42: =IF($C$8=1,"",Optimalisation!X52) -> € 0

Sheet Total prices
B4: TOTAL PRICES 2024 FIRM CAPACITY (which is sum of the all-in transmission tariffs and the neutrality charges)
B8: Total prices FIRM capacity for interconnection points | C8: ENTRY NON-STORAGE | I8: ENTRY STORAGE
B9: Payable total prices FIRM capacity for domestic points
C10: Year | D10: Quarter | E10: Month | F10: Day | G10: Within-day | I10: Year | J10: Quarter | K10: Month | L10: Day | M10: Within-day
C11: EUR/kWh/h/Y | D11: EUR/kWh/h/Q | E11: EUR/kWh/h/M | F11: EUR/kWh/h/DA | G11: EUR/kWh/h/WID | I11: EUR/kWh/h/Y | J11: EUR/kWh/h/Q | K11: EUR/kWh/h/M | L11: EUR/kWh/h/DA | M11: EUR/kWh/h/WID
B13: January | C13: ='Transmission tariffs'!C13+'Neutrality charge'!C13 -> 2.23809208 | D13: ='Transmission tariffs'!D13+'Neutrality charge'!D13 -> 1.08023869 | E13: ='Transmission tariffs'!E13+'Neutrality charge'!E13 -> 0.50756076 | F13: ='Transmission tariffs'!F13+'Neutrality charge'!F13 -> 0.02008627 | G13: ='Transmission tariffs'!G13+'Neutrality charge'!G13 -> 0.00083693 | I13: ='Transmission tariffs'!I13+'Neutrality charge'!I13 -> 0.89523684 | J13: ='Transmission tariffs'!J13+'Neutrality charge'!J13 -> 0.43209548 | K13: ='Transmission tariffs'!K13+'Neutrality charge'!K13 -> 0.20302430 | L13: ='Transmission tariffs'!L13+'Neutrality charge'!L13 -> 0.00803451 | M13: ='Transmission tariffs'!M13+'Neutrality charge'!M13 -> 0.00033477
B14: February | E14: ='Transmission tariffs'!E14+'Neutrality charge'!E14 -> 0.44342658 | F14: ='Transmission tariffs'!F14+'Neutrality charge'!F14 -> 0.01875931 | G14: ='Transmission tariffs'!G14+'Neutrality charge'!G14 -> 0.00078164 | K14: ='Transmission tariffs'!K14+'Neutrality charge'!K14 -> 0.17737063 | L14: ='Transmission tariffs'!L14+'Neutrality charge'!L14 -> 0.00750372 | M14: ='Transmission tariffs'!M14+'Neutrality charge'!M14 -> 0.00031266
B15: March | E15: ='Transmission tariffs'!E15+'Neutrality charge'!E15 -> 0.34320775 | F15: ='Transmission tariffs'!F15+'Neutrality charge'!F15 -> 0.01357989 | G15: ='Transmission tariffs'!G15+'Neutrality charge'!G15 -> 0.00056583 | K15: ='Transmission tariffs'!K15+'Neutrality charge'!K15 -> 0.13728310 | L15: ='Transmission tariffs'!L15+'Neutrality charge'!L15 -> 0.00543196 | M15: ='Transmission tariffs'!M15+'Neutrality charge'!M15 -> 0.00022633
B16: April | D16: ='Transmission tariffs'!D16+'Neutrality charge'!D16 -> 0.49525431 | E16: ='Transmission tariffs'!E16+'Neutrality charge'!E16 -> 0.23637555 | F16: ='Transmission tariffs'!F16+'Neutrality charge'!F16 -> 0.00966324 | G16: ='Transmission tariffs'!G16+'Neutrality charge'!G16 -> 0.00040263 | J16: ='Transmission tariffs'!J16+'Neutrality charge'!J16 -> 0.19810172 | K16: ='Transmission tariffs'!K16+'Neutrality charge'!K16 -> 0.09455022 | L16: ='Transmission tariffs'!L16+'Neutrality charge'!L16 -> 0.00386529 | M16: ='Transmission tariffs'!M16+'Neutrality charge'!M16 -> 0.00016106
B17: May | E17: ='Transmission tariffs'!E17+'Neutrality charge'!E17 -> 0.19221909 | F17: ='Transmission tariffs'!F17+'Neutrality charge'!F17 -> 0.00760859 | G17: ='Transmission tariffs'!G17+'Neutrality charge'!G17 -> 0.00031702 | K17: ='Transmission tariffs'!K17+'Neutrality charge'!K17 -> 0.07688763 | L17: ='Transmission tariffs'!L17+'Neutrality charge'!L17 -> 0.00304344 | M17: ='Transmission tariffs'!M17+'Neutrality charge'!M17 -> 0.00012681
B18: June | E18: ='Transmission tariffs'!E18+'Neutrality charge'!E18 -> 0.16510515 | F18: ='Transmission tariffs'!F18+'Neutrality charge'!F18 -> 0.00675250 | G18: ='Transmission tariffs'!G18+'Neutrality charge'!G18 -> 0.00028136 | K18: ='Transmission tariffs'!K18+'Neutrality charge'!K18 -> 0.06604206 | L18: ='Transmission tariffs'!L18+'Neutrality charge'!L18 -> 0.00270100 | M18: ='Transmission tariffs'!M18+'Neutrality charge'!M18 -> 0.00011254
B19: July | D19: ='Transmission tariffs'!D19+'Neutrality charge'!D19 -> 0.38818056 | E19: ='Transmission tariffs'!E19+'Neutrality charge'!E19 -> 0.15781301 | F19: ='Transmission tariffs'!F19+'Neutrality charge'!F19 -> 0.00623883 | G19: ='Transmission tariffs'!G19+'Neutrality charge'!G19 -> 0.00025995 | J19: ='Transmission tariffs'!J19+'Neutrality charge'!J19 -> 0.15527222 | K19: ='Transmission tariffs'!K19+'Neutrality charge'!K19 -> 0.06312520 | L19: ='Transmission tariffs'!L19+'Neutrality charge'!L19 -> 0.00249553 | M19: ='Transmission tariffs'!M19+'Neutrality charge'!M19 -> 0.00010398
B20: August | E20: ='Transmission tariffs'!E20+'Neutrality charge'!E20 -> 0.15013562 | F20: ='Transmission tariffs'!F20+'Neutrality charge'!F20 -> 0.00593920 | G20: ='Transmission tariffs'!G20+'Neutrality charge'!G20 -> 0.00024747 | K20: ='Transmission tariffs'!K20+'Neutrality charge'!K20 -> 0.06005425 | L20: ='Transmission tariffs'!L20+'Neutrality charge'!L20 -> 0.00237568 | M20: ='Transmission tariffs'!M20+'Neutrality charge'!M20 -> 0.00009899
B21: September | E21: ='Transmission tariffs'!E21+'Neutrality charge'!E21 -> 0.15795060 | F21: ='Transmission tariffs'!F21+'Neutrality charge'!F21 -> 0.00646356 | G21: ='Transmission tariffs'!G21+'Neutrality charge'!G21 -> 0.00026931 | K21: ='Transmission tariffs'!K21+'Neutrality charge'!K21 -> 0.06318024 | L21: ='Transmission tariffs'!L21+'Neutrality charge'!L21 -> 0.00258542 | M21: ='Transmission tariffs'!M21+'Neutrality charge'!M21 -> 0.00010773
B22: October | D22: ='Transmission tariffs'!D22+'Neutrality charge'!D22 -> 0.83191595 | E22: ='Transmission tariffs'!E22+'Neutrality charge'!E22 -> 0.21183908 | F22: ='Transmission tariffs'!F22+'Neutrality charge'!F22 -> 0.00838979 | G22: ='Transmission tariffs'!G22+'Neutrality charge'!G22 -> 0.00034957 | J22: ='Transmission tariffs'!J22+'Neutrality charge'!J22 -> 0.33276638 | K22: ='Transmission tariffs'!K22+'Neutrality charge'!K22 -> 0.08473563 | L22: ='Transmission tariffs'!L22+'Neutrality charge'!L22 -> 0.00335591 | M22: ='Transmission tariffs'!M22+'Neutrality charge'!M22 -> 0.00013983
B23: November | E23: ='Transmission tariffs'!E23+'Neutrality charge'!E23 -> 0.33213653 | F23: ='Transmission tariffs'!F23+'Neutrality charge'!F23 -> 0.01357989 | G23: ='Transmission tariffs'!G23+'Neutrality charge'!G23 -> 0.00056583 | K23: ='Transmission tariffs'!K23+'Neutrality charge'!K23 -> 0.13285461 | L23: ='Transmission tariffs'!L23+'Neutrality charge'!L23 -> 0.00543196 | M23: ='Transmission tariffs'!M23+'Neutrality charge'!M23 -> 0.00022633
B24: December | E24: ='Transmission tariffs'!E24+'Neutrality charge'!E24 -> 0.45353469 | F24: ='Transmission tariffs'!F24+'Neutrality charge'!F24 -> 0.01794601 | G24: ='Transmission tariffs'!G24+'Neutrality charge'!G24 -> 0.00074775 | K24: ='Transmission tariffs'!K24+'Neutrality charge'!K24 -> 0.18141387 | L24: ='Transmission tariffs'!L24+'Neutrality charge'!L24 -> 0.00717840 | M24: ='Transmission tariffs'!M24+'Neutrality charge'!M24 -> 0.00029910
B26: Total prices FIRM capacity for interconnection points | C26: EXIT NON-STORAGE | I26: EXIT STORAGE
B27: Payable total prices FIRM capacity for domestic points
C28: Year | D28: Quarter | E28: Month | F28: Day | G28: Within-day | I28: Year | J28: Quarter | K28: Month | L28: Day | M28: Within-day
C29: EUR/kWh/h/Y | D29: EUR/kWh/h/Q | E29: EUR/kWh/h/M | F29: EUR/kWh/h/DA | G29: EUR/kWh/h/WID | I29: EUR/kWh/h/Y | J29: EUR/kWh/h/Q | K29: EUR/kWh/h/M | L29: EUR/kWh/h/DA | M29: EUR/kWh/h/WID
B31: January | C31: ='Transmission tariffs'!C31+'Neutrality charge'!C31 -> 2.18750422 | D31: ='Transmission tariffs'!D31+'Neutrality charge'!D31 -> 1.05582192 | E31: ='Transmission tariffs'!E31+'Neutrality charge'!E31 -> 0.49608830 | F31: ='Transmission tariffs'!F31+'Neutrality charge'!F31 -> 0.01963226 | G31: ='Transmission tariffs'!G31+'Neutrality charge'!G31 -> 0.00081801 | I31: ='Transmission tariffs'!I31+'Neutrality charge'!I31 -> 0.87500169 | J31: ='Transmission tariffs'!J31+'Neutrality charge'!J31 -> 0.42232877 | K31: ='Transmission tariffs'!K31+'Neutrality charge'!K31 -> 0.19843532 | L31: ='Transmission tariffs'!L31+'Neutrality charge'!L31 -> 0.00785290 | M31: ='Transmission tariffs'!M31+'Neutrality charge'!M31 -> 0.00032720
B32: February | E32: ='Transmission tariffs'!E32+'Neutrality charge'!E32 -> 0.43340376 | F32: ='Transmission tariffs'!F32+'Neutrality charge'!F32 -> 0.01833529 | G32: ='Transmission tariffs'!G32+'Neutrality charge'!G32 -> 0.00076397 | K32: ='Transmission tariffs'!K32+'Neutrality charge'!K32 -> 0.17336150 | L32: ='Transmission tariffs'!L32+'Neutrality charge'!L32 -> 0.00733412 | M32: ='Transmission tariffs'!M32+'Neutrality charge'!M32 -> 0.00030559
B33: March | E33: ='Transmission tariffs'!E33+'Neutrality charge'!E33 -> 0.33545019 | F33: ='Transmission tariffs'!F33+'Neutrality charge'!F33 -> 0.01327295 | G33: ='Transmission tariffs'!G33+'Neutrality charge'!G33 -> 0.00055304 | K33: ='Transmission tariffs'!K33+'Neutrality charge'!K33 -> 0.13418008 | L33: ='Transmission tariffs'!L33+'Neutrality charge'!L33 -> 0.00530918 | M33: ='Transmission tariffs'!M33+'Neutrality charge'!M33 -> 0.00022122
B34: April | D34: ='Transmission tariffs'!D34+'Neutrality charge'!D34 -> 0.48406002 | E34: ='Transmission tariffs'!E34+'Neutrality charge'!E34 -> 0.23103272 | F34: ='Transmission tariffs'!F34+'Neutrality charge'!F34 -> 0.00944482 | G34: ='Transmission tariffs'!G34+'Neutrality charge'!G34 -> 0.00039354 | J34: ='Transmission tariffs'!J34+'Neutrality charge'!J34 -> 0.19362401 | K34: ='Transmission tariffs'!K34+'Neutrality charge'!K34 -> 0.09241309 | L34: ='Transmission tariffs'!L34+'Neutrality charge'!L34 -> 0.00377792 | M34: ='Transmission tariffs'!M34+'Neutrality charge'!M34 -> 0.00015741
B35: May | E35: ='Transmission tariffs'!E35+'Neutrality charge'!E35 -> 0.18787433 | F35: ='Transmission tariffs'!F35+'Neutrality charge'!F35 -> 0.00743662 | G35: ='Transmission tariffs'!G35+'Neutrality charge'!G35 -> 0.00030985 | K35: ='Transmission tariffs'!K35+'Neutrality charge'!K35 -> 0.07514974 | L35: ='Transmission tariffs'!L35+'Neutrality charge'!L35 -> 0.00297464 | M35: ='Transmission tariffs'!M35+'Neutrality charge'!M35 -> 0.00012394
B36: June | E36: ='Transmission tariffs'!E36+'Neutrality charge'!E36 -> 0.16137326 | F36: ='Transmission tariffs'!F36+'Neutrality charge'!F36 -> 0.00659987 | G36: ='Transmission tariffs'!G36+'Neutrality charge'!G36 -> 0.00027499 | K36: ='Transmission tariffs'!K36+'Neutrality charge'!K36 -> 0.06454931 | L36: ='Transmission tariffs'!L36+'Neutrality charge'!L36 -> 0.00263995 | M36: ='Transmission tariffs'!M36+'Neutrality charge'!M36 -> 0.00011000
B37: July | D37: ='Transmission tariffs'!D37+'Neutrality charge'!D37 -> 0.37940647 | E37: ='Transmission tariffs'!E37+'Neutrality charge'!E37 -> 0.15424594 | F37: ='Transmission tariffs'!F37+'Neutrality charge'!F37 -> 0.00609782 | G37: ='Transmission tariffs'!G37+'Neutrality charge'!G37 -> 0.00025407 | J37: ='Transmission tariffs'!J37+'Neutrality charge'!J37 -> 0.15176258 | K37: ='Transmission tariffs'!K37+'Neutrality charge'!K37 -> 0.06169838 | L37: ='Transmission tariffs'!L37+'Neutrality charge'!L37 -> 0.00243912 | M37: ='Transmission tariffs'!M37+'Neutrality charge'!M37 -> 0.00010163
B38: August | E38: ='Transmission tariffs'!E38+'Neutrality charge'!E38 -> 0.14674208 | F38: ='Transmission tariffs'!F38+'Neutrality charge'!F38 -> 0.00580496 | G38: ='Transmission tariffs'!G38+'Neutrality charge'!G38 -> 0.00024187 | K38: ='Transmission tariffs'!K38+'Neutrality charge'!K38 -> 0.05869684 | L38: ='Transmission tariffs'!L38+'Neutrality charge'!L38 -> 0.00232198 | M38: ='Transmission tariffs'!M38+'Neutrality charge'!M38 -> 0.00009674
B39: September | E39: ='Transmission tariffs'!E39+'Neutrality charge'!E39 -> 0.15438042 | F39: ='Transmission tariffs'!F39+'Neutrality charge'!F39 -> 0.00631746 | G39: ='Transmission tariffs'!G39+'Neutrality charge'!G39 -> 0.00026323 | K39: ='Transmission tariffs'!K39+'Neutrality charge'!K39 -> 0.06175217 | L39: ='Transmission tariffs'!L39+'Neutrality charge'!L39 -> 0.00252699 | M39: ='Transmission tariffs'!M39+'Neutrality charge'!M39 -> 0.00010529
B40: October | D40: ='Transmission tariffs'!D40+'Neutrality charge'!D40 -> 0.81311205 | E40: ='Transmission tariffs'!E40+'Neutrality charge'!E40 -> 0.20705086 | F40: ='Transmission tariffs'!F40+'Neutrality charge'!F40 -> 0.00820015 | G40: ='Transmission tariffs'!G40+'Neutrality charge'!G40 -> 0.00034167 | J40: ='Transmission tariffs'!J40+'Neutrality charge'!J40 -> 0.32524482 | K40: ='Transmission tariffs'!K40+'Neutrality charge'!K40 -> 0.08282034 | L40: ='Transmission tariffs'!L40+'Neutrality charge'!L40 -> 0.00328007 | M40: ='Transmission tariffs'!M40+'Neutrality charge'!M40 -> 0.00013667
B41: November | E41: ='Transmission tariffs'!E41+'Neutrality charge'!E41 -> 0.32462921 | F41: ='Transmission tariffs'!F41+'Neutrality charge'!F41 -> 0.01327295 | G41: ='Transmission tariffs'!G41+'Neutrality charge'!G41 -> 0.00055304 | K41: ='Transmission tariffs'!K41+'Neutrality charge'!K41 -> 0.12985169 | L41: ='Transmission tariffs'!L41+'Neutrality charge'!L41 -> 0.00530918 | M41: ='Transmission tariffs'!M41+'Neutrality charge'!M41 -> 0.00022122
B42: December | E42: ='Transmission tariffs'!E42+'Neutrality charge'!E42 -> 0.44328338 | F42: ='Transmission tariffs'!F42+'Neutrality charge'!F42 -> 0.01754038 | G42: ='Transmission tariffs'!G42+'Neutrality charge'!G42 -> 0.00073085 | K42: ='Transmission tariffs'!K42+'Neutrality charge'!K42 -> 0.17731336 | L42: ='Transmission tariffs'!L42+'Neutrality charge'!L42 -> 0.00701615 | M42: ='Transmission tariffs'!M42+'Neutrality charge'!M42 -> 0.00029234

Sheet Transmission tariffs
B4: ALL-IN TRANSMISSION TARIFFS 2024 (as established by the Dutch regulator ACM)
B6: Tariffs are all rounded to 8 decimals. Within-day prices are rounded up.
B8: Reserve prices FIRM capacity for interconnection points | C8: ENTRY NON-STORAGE | I8: ENTRY STORAGE
B9: Payable prices FIRM capacity for domestic points
C10: Year | D10: Quarter | E10: Month | F10: Day | G10: Within-day | I10: Year | J10: Quarter | K10: Month | L10: Day | M10: Within-day
C11: EUR/kWh/h/Y | D11: EUR/kWh/h/Q | E11: EUR/kWh/h/M | F11: EUR/kWh/h/DA | G11: EUR/kWh/h/WID | I11: EUR/kWh/h/Y | J11: EUR/kWh/h/Q | K11: EUR/kWh/h/M | L11: EUR/kWh/h/DA | M11: EUR/kWh/h/WID
B13: Januari | C13: 2.25405482 | D13: 1.08794327 | E13: 0.51118083 | F13: 0.02022953 | G13: 0.00084290 | I13: 0.90162193 | J13: 0.43517731 | K13: 0.20447233 | L13: 0.00809181 | M13: 0.00033716
B14: Februari | E14: 0.44658923 | F14: 0.01889311 | G14: 0.00078722 | K14: 0.17863569 | L14: 0.00755724 | M14: 0.00031489
B15: Maart | E15: 0.34565561 | F15: 0.01367675 | G15: 0.00056987 | K15: 0.13826224 | L15: 0.00547070 | M15: 0.00022795
B16: April | D16: 0.49878661 | E16: 0.23806145 | F16: 0.00973216 | G16: 0.00040551 | J16: 0.19951464 | K16: 0.09522458 | L16: 0.00389286 | M16: 0.00016221
B17: Mei | E17: 0.19359005 | F17: 0.00766286 | G17: 0.00031929 | K17: 0.07743602 | L17: 0.00306515 | M17: 0.00012772
B18: Juni | E18: 0.16628273 | F18: 0.00680066 | G18: 0.00028337 | K18: 0.06651309 | L18: 0.00272026 | M18: 0.00011335
B19: Juli | D19: 0.39094918 | E19: 0.15893858 | F19: 0.00628333 | G19: 0.00026181 | J19: 0.15637967 | K19: 0.06357543 | L19: 0.00251333 | M19: 0.00010473
B20: Augustus | E20: 0.15120643 | F20: 0.00598156 | G20: 0.00024924 | K20: 0.06048257 | L20: 0.00239262 | M20: 0.00009970
B21: September | E21: 0.15907715 | F21: 0.00650966 | G21: 0.00027124 | K21: 0.06363086 | L21: 0.00260386 | M21: 0.00010850
B22: Oktober | D22: 0.83784942 | E22: 0.21334998 | F22: 0.00844963 | G22: 0.00035207 | J22: 0.33513977 | K22: 0.08533999 | L22: 0.00337985 | M22: 0.00014083
B23: November | E23: 0.33450543 | F23: 0.01367675 | G23: 0.00056987 | K23: 0.13380217 | L23: 0.00547070 | M23: 0.00022795
B24: December | E24: 0.45676943 | F24: 0.01807401 | G24: 0.00075309 | K24: 0.18270777 | L24: 0.00722960 | M24: 0.00030124
B26: Reserve prices FIRM capacity for interconnection points | C26: EXIT NON-STORAGE | I26: EXIT STORAGE
B27: Payable prices FIRM capacity for domestic points
C28: Year | D28: Quarter | E28: Month | F28: Day | G28: Within-day | I28: Year | J28: Quarter | K28: Month | L28: Day | M28: Within-day
C29: EUR/kWh/h/Y | D29: EUR/kWh/h/Q | E29: EUR/kWh/h/M | F29: EUR/kWh/h/DA | G29: EUR/kWh/h/WID | I29: EUR/kWh/h/Y | J29: EUR/kWh/h/Q | K29: EUR/kWh/h/M | L29: EUR/kWh/h/DA | M29: EUR/kWh/h/WID
B31: Januari | C31: 2.20310615 | D31: 1.06335236 | E31: 0.49962655 | F31: 0.01977228 | G31: 0.00082385 | I31: 0.88124246 | J31: 0.42534094 | K31: 0.19985062 | L31: 0.00790891 | M31: 0.00032954
B32: Februari | E32: 0.43649492 | F32: 0.01846606 | G32: 0.00076942 | K32: 0.17459797 | L32: 0.00738643 | M32: 0.00030777
B33: Maart | E33: 0.33784272 | F33: 0.01336762 | G33: 0.00055699 | K33: 0.13513709 | L33: 0.00534705 | M33: 0.00022280
B34: April | D34: 0.48751248 | E34: 0.23268051 | F34: 0.00951218 | G34: 0.00039635 | J34: 0.19500499 | K34: 0.09307221 | L34: 0.00380487 | M34: 0.00015854
B35: Mei | E35: 0.18921431 | F35: 0.00748966 | G35: 0.00031207 | K35: 0.07568573 | L35: 0.00299586 | M35: 0.00012483
B36: Juni | E36: 0.16252422 | F36: 0.00664694 | G36: 0.00027696 | K36: 0.06500969 | L36: 0.00265878 | M36: 0.00011079
B37: Juli | D37: 0.38211251 | E37: 0.15534607 | F37: 0.00614131 | G37: 0.00025589 | J37: 0.15284500 | K37: 0.06213843 | L37: 0.00245652 | M37: 0.00010236
B38: Augustus | E38: 0.14778869 | F38: 0.00584636 | G38: 0.00024360 | K38: 0.05911548 | L38: 0.00233854 | M38: 0.00009744
B39: September | E39: 0.15548151 | F39: 0.00636252 | G39: 0.00026511 | K39: 0.06219260 | L39: 0.00254501 | M39: 0.00010605
B40: Oktober | D40: 0.81891141 | E40: 0.20852761 | F40: 0.00825864 | G40: 0.00034411 | J40: 0.32756456 | K40: 0.08341104 | L40: 0.00330346 | M40: 0.00013765
B41: November | E41: 0.32694456 | F41: 0.01336762 | G41: 0.00055699 | K41: 0.13077783 | L41: 0.00534705 | M41: 0.00022280
B42: December | E42: 0.44644501 | F42: 0.01766548 | G42: 0.00073607 | K42: 0.17857801 | L42: 0.00706619 | M42: 0.00029443

Sheet Neutrality charge
B4: NEUTRALITY CHARGE 2024 (as established by GTS in accordance with calculation methodology as stated in the Transmission Code Gas - TSO)
B6: Charges are all rounded to 8 decimals. Within-day prices are rounded up.
B8: Charge FIRM capacity for interconnection points | C8: ENTRY NON-STORAGE | I8: ENTRY STORAGE
B9: Payable charge FIRM capacity for domestic points
C10: Year | D10: Quarter | E10: Month | F10: Day | G10: Within-day | I10: Year | J10: Quarter | K10: Month | L10: Day | M10: Within-day
C11: EUR/kWh/h/Y | D11: EUR/kWh/h/Q | E11: EUR/kWh/h/M | F11: EUR/kWh/h/DA | G11: EUR/kWh/h/WID | I11: EUR/kWh/h/Y | J11: EUR/kWh/h/Q | K11: EUR/kWh/h/M | L11: EUR/kWh/h/DA | M11: EUR/kWh/h/WID
B13: Januari | C13: -0.01596274 | D13: -0.00770458 | E13: -0.00362007 | F13: -0.00014326 | G13: -0.00000597 | I13: -0.00638509 | J13: -0.00308183 | K13: -0.00144803 | L13: -0.00005730 | M13: -0.00000239
B14: Februari | E14: -0.00316265 | F14: -0.00013380 | G14: -0.00000558 | K14: -0.00126506 | L14: -0.00005352 | M14: -0.00000223
B15: Maart | E15: -0.00244786 | F15: -0.00009686 | G15: -0.00000404 | K15: -0.00097914 | L15: -0.00003874 | M15: -0.00000162
B16: April | D16: -0.00353230 | E16: -0.00168590 | F16: -0.00006892 | G16: -0.00000288 | J16: -0.00141292 | K16: -0.00067436 | L16: -0.00002757 | M16: -0.00000115
B17: Mei | E17: -0.00137096 | F17: -0.00005427 | G17: -0.00000227 | K17: -0.00054839 | L17: -0.00002171 | M17: -0.00000091
B18: Juni | E18: -0.00117758 | F18: -0.00004816 | G18: -0.00000201 | K18: -0.00047103 | L18: -0.00001926 | M18: -0.00000081
B19: Juli | D19: -0.00276862 | E19: -0.00112557 | F19: -0.00004450 | G19: -0.00000186 | J19: -0.00110745 | K19: -0.00045023 | L19: -0.00001780 | M19: -0.00000075
B20: Augustus | E20: -0.00107081 | F20: -0.00004236 | G20: -0.00000177 | K20: -0.00042832 | L20: -0.00001694 | M20: -0.00000071
B21: September | E21: -0.00112655 | F21: -0.00004610 | G21: -0.00000193 | K21: -0.00045062 | L21: -0.00001844 | M21: -0.00000077
B22: Oktober | D22: -0.00593347 | E22: -0.00151090 | F22: -0.00005984 | G22: -0.00000250 | J22: -0.00237339 | K22: -0.00060436 | L22: -0.00002394 | M22: -0.00000100
B23: November | E23: -0.00236890 | F23: -0.00009686 | G23: -0.00000404 | K23: -0.00094756 | L23: -0.00003874 | M23: -0.00000162
B24: December | E24: -0.00323474 | F24: -0.00012800 | G24: -0.00000534 | K24: -0.00129390 | L24: -0.00005120 | M24: -0.00000214
B26: Charge FIRM capacity for interconnection points | C26: EXIT NON-STORAGE | I26: EXIT STORAGE
B27: Payable charge FIRM capacity for domestic points
C28: Year | D28: Quarter | E28: Month | F28: Day | G28: Within-day | I28: Year | J28: Quarter | K28: Month | L28: Day | M28: Within-day
C29: EUR/kWh/h/Y | D29: EUR/kWh/h/Q | E29: EUR/kWh/h/M | F29: EUR/kWh/h/DA | G29: EUR/kWh/h/WID | I29: EUR/kWh/h/Y | J29: EUR/kWh/h/Q | K29: EUR/kWh/h/M | L29: EUR/kWh/h/DA | M29: EUR/kWh/h/WID
B31: Januari | C31: -0.01560193 | D31: -0.00753044 | E31: -0.00353825 | F31: -0.00014002 | G31: -0.00000584 | I31: -0.00624077 | J31: -0.00301217 | K31: -0.00141530 | L31: -0.00005601 | M31: -0.00000234
B32: Februari | E32: -0.00309116 | F32: -0.00013077 | G32: -0.00000545 | K32: -0.00123647 | L32: -0.00005231 | M32: -0.00000218
B33: Maart | E33: -0.00239253 | F33: -0.00009467 | G33: -0.00000395 | K33: -0.00095701 | L33: -0.00003787 | M33: -0.00000158
B34: April | D34: -0.00345246 | E34: -0.00164779 | F34: -0.00006736 | G34: -0.00000281 | J34: -0.00138098 | K34: -0.00065912 | L34: -0.00002695 | M34: -0.00000113
B35: Mei | E35: -0.00133998 | F35: -0.00005304 | G35: -0.00000222 | K35: -0.00053599 | L35: -0.00002122 | M35: -0.00000089
B36: Juni | E36: -0.00115096 | F36: -0.00004707 | G36: -0.00000197 | K36: -0.00046038 | L36: -0.00001883 | M36: -0.00000079
B37: Juli | D37: -0.00270604 | E37: -0.00110013 | F37: -0.00004349 | G37: -0.00000182 | J37: -0.00108242 | K37: -0.00044005 | L37: -0.00001740 | M37: -0.00000073
B38: Augustus | E38: -0.00104661 | F38: -0.00004140 | G38: -0.00000173 | K38: -0.00041864 | L38: -0.00001656 | M38: -0.00000070
B39: September | E39: -0.00110109 | F39: -0.00004506 | G39: -0.00000188 | K39: -0.00044043 | L39: -0.00001802 | M39: -0.00000076
B40: Oktober | D40: -0.00579936 | E40: -0.00147675 | F40: -0.00005849 | G40: -0.00000244 | J40: -0.00231974 | K40: -0.00059070 | L40: -0.00002339 | M40: -0.00000098
B41: November | E41: -0.00231535 | F41: -0.00009467 | G41: -0.00000395 | K41: -0.00092614 | L41: -0.00003787 | M41: -0.00000158
B42: December | E42: -0.00316163 | F42: -0.00012510 | G42: -0.00000522 | K42: -0.00126465 | L42: -0.00005004 | M42: -0.00000209

Sheet Optimalisation (hidden)
B4: COLLECTING DATA FOR OPTIMALISATION
B6: Helping cell: row number | C6: Numbers of months applicable | D6: Month number | E6: Final month | F6: Year | G6: Month name | H6: Helping cell: code Y&M | I6: Days per month in desired period
L7: date | M7: year | N7: quarter | O7: month | P7: day
B8: 0 | D8: =O8 -> 1 | F8: =M8 -> 2024 | G8: =IF(D8="",D8,INDEX(C$60:C$71,$D8,1)) -> January | H8: =CONCATENATE(F8,G8) -> 2024January | I8: =P19 -> 31 | K8: Start date | L8: ='Period booking'!D8 -> 2024-01-01 | M8: =YEAR(L8) -> 2024 | N8: n.a. | O8: =MONTH(L8) -> 1 | P8: =DAY(L8) -> 1
B9: =B8+1 -> 1 | C9: =IF(B9>P$18,"",B9) -> 1 | D9: =IF($C9="",$C9,IF($D8+1=13,1,IF($D8+1>13,$D8+1-12,$D8+1))) -> 2 | E9: =IF(AND(D10="",D9<>""),"END","") ->  | F9: =IF(D9="","",IF(AND($D9>$D8,$F8<$M$9),$M$8,$M$9)) -> 2024 | G9: =IF(D9="",D9,INDEX(C$60:C$71,D9,1)) -> February | H9: 2024February | I9: =IF($E9="END",$P$9,IF($D9="","",VLOOKUP($H9,$D$60:$I$83,5,FALSE))) -> 29 | K9: End date | L9: ='Period booking'!D9 -> 2024-12-31 | M9: =YEAR(L9) -> 2024 | N9: n.a. | O9: =MONTH(L9) -> 12 | P9: =DAY(L9) -> 31
B10: 2 | C10: 2 | D10: 3 | F10: 2024 | G10: March | H10: 2024March | I10: 31
B11: 3 | C11: 3 | D11: 4 | F11: 2024 | G11: April | H11: 2024April | I11: 30 | K11: Capacity | O11: kWh/h | P11: ='Period booking'!D11 -> 100
B12: 4 | C12: 4 | D12: 5 | F12: 2024 | G12: May | H12: 2024May | I12: 31 | K12: Applicable yearly reserve price | O12: EUR/kWh/h/y | P12: =K60 -> 2.2381
B13: 5 | C13: 5 | D13: 6 | F13: 2024 | G13: June | H13: 2024June | I13: 30 | K13: Payable amount in case of yearly (flat) booking | O13: EUR/y | P13: =P11*P12 -> 224
B14: 6 | C14: 6 | D14: 7 | F14: 2024 | G14: July | H14: 2024July | I14: 31 | K14: Payable amount after optimalisation | O14: EUR/y | P14: =X53 -> 224
B15: 7 | C15: 7 | D15: 8 | F15: 2024 | G15: August | H15: 2024August | I15: 31 | K15: Optimisation to yearly booking? | P15: =IF(P13<P14,"Yes", "No") -> No
B16: 8 | C16: 8 | D16: 9 | F16: 2024 | G16: September | H16: 2024September | I16: 30
B17: 9 | C17: 9 | D17: 10 | F17: 2024 | G17: October | H17: 2024October | I17: 31 | K17: Check same month: | P17: =IF(AND(M8=M9,O8=O9),"ZELFDEMAAND","No") -> No
B18: 10 | C18: 10 | D18: 11 | F18: 2024 | G18: November | H18: 2024November | I18: 30 | K18: Number of months involved after starting month: | P18: =IF(($O$9-$O$8)>0,($O$9-$O$8),IF(($O$9-$O$8)<0,IF($P$8=1,12+($O$9-$O$8),12+($O$9-$O$8)),IF($M$9=$M$8,0,13))) -> 11
B19: 11 | C19: 11 | D19: 12 | E19: END | F19: 2024 | G19: December | H19: 2024December | I19: 31 | K19: Number of days involved in starting month | P19: =IF(P$17="ZELFDEMAAND",$P$9-$P$8+1,_xlfn.DAYS(EOMONTH($L$8,0),$L$8)+1) -> 31
B20: 12
B23: OPTIMISATION FOR DESIRED PERIOD BOOKING INTO NON-YEARLY CAPACITY PRODUCTS
Y25: Optimised non-yearly product
B26: Helping cell: row number | C26: Year | D26: Month | E26: Helping cell: code Y&M | F26: Month number | G26: Days per month in desired period | H26: Days in month | I26: Quarter number | J26: Days in quarter | K26: Days in year | L26: Reserve price for daily products | M26: Reserve price for monthly products | N26: Reserve price for quarterly products | O26: Reserve price for a yearly product | P26: Optimisation 2.1.2. (c) | R26: Optimisation 2.1.2. (b) | T26: Optimisation 2.1.2. (a) | W26: Optimised period booking | Y26: Year | Z26: Quarter | AA26: Month | AB26: Day-ahead
L27: EUR/month | M27: EUR/month | N27: EUR/quarter | O27: EUR/year | P27: MIN (D vs M) | Q27: EUR/month | R27: MIN (D;M vs Q) | S27: EUR/month | T27: MIN (D;M;Q vs Y) | U27: correction yearly product | V27: EUR/month | W27: Product type | X27: EUR/month
U28: =IF($T$53=12,IF($T28="Y",$T28,""),IF($T$53=13,IF($T28="","",IF(OR(AND($T28="Y",$T27=""),AND($T28="Y",$T29="")),IF($S28<$S40,$P28,IF(COUNTIF($U27:$U$29,"Y")=12,$P27)),"Y")),IF($T$53=11,IF(OR(AND($T28="",$T27="Y"),AND($T28="",$T29="Y")),"?",IF($T28="Y",$T28,"")),""))) -> 
B29: 1 | C29: =M$8 -> 2024 | D29: January | E29: =CONCATENATE(C29,D29) -> 2024January | F29: 1 | G29: =_xlfn.IFNA(VLOOKUP(E29,H$8:I$20,2,FALSE),0) -> 31 | H29: =INDEX($B$60:$J$83,$B29,7) -> 31 | I29: =INDEX($B$60:$J$83,$B29,6) -> 1 | J29: =INDEX($B$60:$J$83,$B29,8) -> 91 | K29: =IF(U29="Y",SUMIF($U$29:$U$52,"Y",$H$29:$H$52),"") -> 366 | L29: =N60*G29 -> € 0.623 | M29: =IF($G29<>0,M60,0) -> € 0.508 | N29: =IF($G29<>0,L60,0) -> € 1.080 | O29: =IF($G29<>0,K60,0) -> € 2.238 | P29: =IF($G29<>0,IF(L29<M29,"D", "M"),"") -> M | Q29: =IF(P29="D",L29,M29) -> € 0.508 | R29: =IF($G29=0,"",IF($I29<>$I28,IF(SUM($Q29:$Q31)>=$N29,"Q",""),IF($R28="Q","Q",""))) -> Q | S29: =IF($R29="Q",$N29*$H29/$J29,$Q29) -> € 0.368 | T29: =IF($G29=0,"",IF(SUM($S29:$S40)>=$O29,"Y",IF($T28="Y","Y",""))) -> Y | U29: =IF($T$53=12,IF($T29="Y",$T29,""),IF($T$53=13,IF($T29="","",IF(AND($T29="Y",$T28=""),IF($S29<$S41,$P29,"Y"),IF(AND($T29="Y",$T30=""),IF($S29<$S17,$P29,"Y"),"Y"))),IF($T$53=11,IF(OR(AND($T29="",$T28="Y"),AND($T29="",$T30="Y")),"?",IF($T29="Y",$T29,"")),IF($T$53=10,IF(OR(AND($T29="",$T28="Y"),AND($T29="",$T30="Y"),AND($T29="",$T28="",$T27="Y"),AND($T29="",$T30="",$T31="Y")),"?",IF($T29="Y",$T29,"")),IF($T$53=9,IF(OR(AND($T29="",$T28="Y"),AND($T29="",$T30="Y"),AND($T29="",$T28="",$T27="Y"),AND($T29="",$T30="",$T31="Y"),AND($T29="",$T28="",$T27="",$T26="Y"),AND($T29="",$T30="",$T31="",$T32="Y")),"?",IF($T29="Y",$T29,"")),""))))) -> Y | V29: =IF($U29="",0,IF($T$53=11,"no 12th month in yearly booking",IF($T$53=10,"no 11th and 12th month in yearly booking",IF($T$53=9,"no 10th, 11th and 12th month in yearly booking",IF($U29="Y",$O29*$H29/$K29,$S29))))) -> € 0.190 | W29: =IF(AND($G29=0,$U29=""),"",IF(OR($U29="Y",$U29="?"),$U29,IF($R29="Q",$R29,$P29))) -> Y | X29: =IFERROR(IF(AND($G29=0,$U29=""),"",IF(OR($U29="Y",$U29="?"),$V29,IF($R29="Q",$S29,$Q29)))*$P$11,$V29) -> € 19 | Y29: =IF($W29="Y","Y",IF($W29="?",$W29,"")) -> Y | Z29: =IF($W29="Q","Q"&$I29,"") ->  | AA29: =IF($W29="M","M"&$F29,"") ->  | AB29: =IF($W29="D",$G29,"") -> 
B30: =B29+1 -> 2 | C30: 2024 | D30: February | E30: 2024February | F30: 2 | G30: =_xlfn.IFNA(VLOOKUP(E30,H$8:I$20,2,FALSE),0) -> 29 | H30: =INDEX($B$60:$J$83,$B30,7) -> 29 | I30: =INDEX($B$60:$J$83,$B30,6) -> 1 | J30: =INDEX($B$60:$J$83,$B30,8) -> 91 | K30: =IF(U30="Y",SUMIF($U$29:$U$52,"Y",$H$29:$H$52),"") -> 366 | L30: € 0.544 | M30: € 0.443 | N30: € 1.080 | O30: € 2.238 | P30: =IF($G30<>0,IF(L30<M30,"D", "M"),"") -> M | Q30: =IF(P30="D",L30,M30) -> € 0.443 | R30: =IF($G30=0,"",IF($I30<>$I29,IF(SUM($Q30:$Q32)>=$N30,"Q",""),IF($R29="Q","Q",""))) -> Q | S30: =IF($R30="Q",$N30*$H30/$J30,$Q30) -> € 0.344 | T30: =IF($G30=0,"",IF(SUM($S30:$S41)>=$O30,"Y",IF($T29="Y","Y",""))) -> Y | U30: Y | V30: € 0.177 | W30: Y | X30: =IFERROR(IF(AND($G30=0,$U30=""),"",IF(OR($U30="Y",$U30="?"),$V30,IF($R30="Q",$S30,$Q30)))*$P$11,$V30) -> € 18 | Y30: =IF($W30="Y","Y",IF($W30="?",$W30,"")) -> Y
B31: 3 | C31: 2024 | D31: March | E31: 2024March | F31: 3 | G31: 31 | H31: 31 | I31: =INDEX($B$60:$J$83,$B31,6) -> 1 | J31: 91 | K31: 366 | L31: € 0.421 | M31: € 0.343 | N31: € 1.080 | O31: € 2.238 | P31: M | Q31: =IF(P31="D",L31,M31) -> € 0.343 | R31: Q | S31: =IF($R31="Q",$N31*$H31/$J31,$Q31) -> € 0.368 | T31: =IF($G31=0,"",IF(SUM($S31:$S42)>=$O31,"Y",IF($T30="Y","Y",""))) -> Y | U31: Y | V31: € 0.190 | W31: Y | X31: € 19 | Y31: Y
B32: 4 | C32: 2024 | D32: April | E32: 2024April | F32: 4 | G32: 30 | H32: 30 | I32: 2 | J32: 91 | K32: 366 | L32: € 0.290 | M32: € 0.236 | N32: € 0.495 | O32: € 2.238 | P32: M | Q32: =IF(P32="D",L32,M32) -> € 0.236 | R32: Q | S32: =IF($R32="Q",$N32*$H32/$J32,$Q32) -> € 0.163 | T32: =IF($G32=0,"",IF(SUM($S32:$S43)>=$O32,"Y",IF($T31="Y","Y",""))) -> Y | U32: Y | V32: € 0.183 | W32: Y | X32: € 18 | Y32: Y
B33: 5 | C33: 2024 | D33: May | E33: 2024May | F33: 5 | G33: 31 | H33: 31 | I33: 2 | J33: 91 | K33: =IF(U33="Y",SUMIF($U$29:$U$52,"Y",$H$29:$H$52),"") -> 366 | L33: € 0.236 | M33: € 0.192 | N33: € 0.495 | O33: € 2.238 | P33: M | Q33: =IF(P33="D",L33,M33) -> € 0.192 | R33: Q | S33: =IF($R33="Q",$N33*$H33/$J33,$Q33) -> € 0.169 | T33: =IF($G33=0,"",IF(SUM($S33:$S44)>=$O33,"Y",IF($T32="Y","Y",""))) -> Y | U33: Y | V33: € 0.190 | W33: Y | X33: € 19 | Y33: =IF($W33="Y","Y",IF($W33="?",$W33,"")) -> Y
B34: 6 | C34: 2024 | D34: June | E34: 2024June | F34: 6 | G34: 30 | H34: 30 | I34: 2 | J34: 91 | K34: =IF(U34="Y",SUMIF($U$29:$U$52,"Y",$H$29:$H$52),"") -> 366 | L34: € 0.203 | M34: € 0.165 | N34: € 0.495 | O34: € 2.238 | P34: M | Q34: € 0.165 | R34: Q | S34: =IF($R34="Q",$N34*$H34/$J34,$Q34) -> € 0.163 | T34: =IF($G34=0,"",IF(SUM($S34:$S45)>=$O34,"Y",IF($T33="Y","Y",""))) -> Y | U34: Y | V34: € 0.183 | W34: =IF(AND($G34=0,$U34=""),"",IF(OR($U34="Y",$U34="?"),$U34,IF($R34="Q",$R34,$P34))) -> Y | X34: € 18 | Y34: Y
B35: 7 | C35: 2024 | D35: July | E35: 2024July | F35: 7 | G35: 31 | H35: 31 | I35: 3 | J35: 92 | K35: 366 | L35: € 0.193 | M35: € 0.158 | N35: € 0.388 | O35: € 2.238 | P35: M | Q35: =IF(P35="D",L35,M35) -> € 0.158 | R35: Q | S35: € 0.131 | T35: =IF($G35=0,"",IF(SUM($S35:$S46)>=$O35,"Y",IF($T34="Y","Y",""))) -> Y | U35: Y | V35: € 0.190 | W35: =IF(AND($G35=0,$U35=""),"",IF(OR($U35="Y",$U35="?"),$U35,IF($R35="Q",$R35,$P35))) -> Y | X35: € 19 | Y35: Y
B36: 8 | C36: 2024 | D36: August | E36: 2024August | F36: 8 | G36: 31 | H36: 31 | I36: 3 | J36: 92 | K36: 366 | L36: € 0.184 | M36: € 0.150 | N36: € 0.388 | O36: € 2.238 | P36: M | Q36: € 0.150 | R36: Q | S36: € 0.131 | T36: =IF($G36=0,"",IF(SUM($S36:$S47)>=$O36,"Y",IF($T35="Y","Y",""))) -> Y | U36: Y | V36: € 0.190 | W36: =IF(AND($G36=0,$U36=""),"",IF(OR($U36="Y",$U36="?"),$U36,IF($R36="Q",$R36,$P36))) -> Y | X36: € 19 | Y36: Y
B37: 9 | C37: 2024 | D37: September | E37: 2024September | F37: 9 | G37: 30 | H37: 30 | I37: 3 | J37: 92 | K37: 366 | L37: € 0.194 | M37: € 0.158 | N37: € 0.388 | O37: € 2.238 | P37: M | Q37: € 0.158 | R37: Q | S37: € 0.127 | T37: Y | U37: Y | V37: € 0.183 | W37: Y | X37: € 18 | Y37: Y
B38: 10 | C38: 2024 | D38: October | E38: 2024October | F38: 10 | G38: 31 | H38: 31 | I38: 4 | J38: 92 | K38: 366 | L38: € 0.260 | M38: € 0.212 | N38: € 0.832 | O38: € 2.238 | P38: M | Q38: € 0.212 | R38: Q | S38: € 0.280 | T38: Y | U38: Y | V38: € 0.190 | W38: Y | X38: € 19 | Y38: Y
B39: 11 | C39: 2024 | D39: November | E39: 2024November | F39: 11 | G39: 30 | H39: 30 | I39: 4 | J39: 92 | K39: 366 | L39: € 0.407 | M39: € 0.332 | N39: € 0.832 | O39: € 2.238 | P39: M | Q39: € 0.332 | R39: Q | S39: € 0.271 | T39: Y | U39: Y | V39: € 0.183 | W39: Y | X39: € 18 | Y39: Y
B40: 12 | C40: 2024 | D40: December | E40: 2024December | F40: 12 | G40: 31 | H40: 31 | I40: 4 | J40: 92 | K40: 366 | L40: € 0.556 | M40: € 0.454 | N40: € 0.832 | O40: € 2.238 | P40: M | Q40: € 0.454 | R40: Q | S40: € 0.280 | T40: Y | U40: Y | V40: € 0.190 | W40: Y | X40: € 19 | Y40: Y
B41: 13 | C41: =YEAR(L$8+366) -> 2025 | D41: January | E41: 2025January | F41: 1 | G41: 0 | H41: 31 | I41: =INDEX($B$60:$J$83,$B41,6) -> 1 | J41: 90 | L41: 0 | M41: 0 | N41: 0 | O41: 0 | Q41: 0 | S41: 0 | V41: 0 | X41: 0
B42: =B41+1 -> 14 | C42: 2025 | D42: February | E42: 2025February | F42: 2 | G42: 0 | H42: 28 | I42: =INDEX($B$60:$J$83,$B42,6) -> 1 | J42: 90 | L42: 0 | M42: 0 | N42: 0 | O42: 0 | Q42: 0 | S42: 0 | V42: 0 | X42: 0
B43: 15 | C43: 2025 | D43: March | E43: 2025March | F43: 3 | G43: 0 | H43: 31 | I43: =INDEX($B$60:$J$83,$B43,6) -> 1 | J43: 90 | L43: 0 | M43: 0 | N43: 0 | O43: 0 | Q43: 0 | S43: 0 | V43: 0 | X43: 0
B44: 16 | C44: 2025 | D44: April | E44: 2025April | F44: 4 | G44: 0 | H44: 30 | I44: 2 | J44: 91 | L44: 0 | M44: 0 | N44: 0 | O44: 0 | Q44: 0 | S44: 0 | T44: =IF($G44=0,"",IF(SUM($S44:$S55)>=$O44,"Y",IF($T43="Y","Y",""))) ->  | V44: 0 | X44: 0
B45: 17 | C45: 2025 | D45: May | E45: 2025May | F45: 5 | G45: 0 | H45: 31 | I45: 2 | J45: 91 | L45: 0 | M45: 0 | N45: 0 | O45: 0 | Q45: 0 | S45: 0 | V45: 0 | X45: 0
B46: 18 | C46: 2025 | D46: June | E46: 2025June | F46: 6 | G46: 0 | H46: 30 | I46: 2 | J46: 91 | L46: 0 | M46: 0 | N46: 0 | O46: 0 | Q46: 0 | S46: 0 | V46: 0 | X46: 0
B47: 19 | C47: 2025 | D47: July | E47: 2025July | F47: 7 | G47: 0 | H47: 31 | I47: 3 | J47: 92 | L47: 0 | M47: 0 | N47: 0 | O47: 0 | Q47: 0 | S47: 0 | V47: 0 | X47: 0
B48: 20 | C48: 2025 | D48: August | E48: 2025August | F48: 8 | G48: 0 | H48: 31 | I48: 3 | J48: 92 | L48: 0 | M48: 0 | N48: 0 | O48: 0 | Q48: 0 | S48: 0 | V48: 0 | X48: 0
B49: 21 | C49: 2025 | D49: September | E49: 2025September | F49: 9 | G49: 0 | H49: 30 | I49: 3 | J49: 92 | L49: 0 | M49: 0 | N49: 0 | O49: 0 | Q49: 0 | S49: 0 | V49: 0 | X49: 0
B50: 22 | C50: 2025 | D50: October | E50: 2025October | F50: 10 | G50: 0 | H50: 31 | I50: 4 | J50: 92 | L50: 0 | M50: 0 | N50: 0 | O50: 0 | Q50: 0 | S50: 0 | V50: 0 | X50: 0
B51: 23 | C51: 2025 | D51: November | E51: 2025November | F51: 11 | G51: 0 | H51: 30 | I51: 4 | J51: 92 | L51: 0 | M51: 0 | N51: 0 | O51: 0 | Q51: 0 | S51: 0 | V51: 0 | X51: 0
B52: 24 | C52: 2025 | D52: December | E52: 2025December | F52: 12 | G52: 0 | H52: 31 | I52: 4 | J52: 92 | L52: 0 | M52: 0 | N52: 0 | O52: 0 | Q52: 0 | S52: 0 | V52: 0 | X52: 0
T53: =COUNTIF($T$29:$T$52,"Y") -> 12 | X53: =SUM(X29:X52) -> € 224
B55: HELPING TABLE: COLLECTING DATES, NUMBER OF DAYS IN MONTH AND QUARTER AND RESERVE PRICES
F57: DATE INFORMATION | K57: RESERVE PRICES
B59: Year | C59: Month | D59: Helping cell: code Y&M | F59: Month number | G59: Quarter number | H59: Number of days in month | I59: Number of days in quarter | K59: Year | L59: Quarter | M59: Month | N59: Day
B60: =M$8 -> 2024 | C60: January | D60: =CONCATENATE(B60,C60) -> 2024January | F60: 1 | G60: 1 | H60: =DAY(EOMONTH(DATE(B60,F60,1),0)) -> 31 | I60: =IF(G60<>G59,SUM(H60:H62),I59) -> 91 | K60: =IF('Period booking'!$D$10="Exit SSO",INDEX(exitstorage,1,1),IF('Period booking'!$D$10="Exit non-SSO",INDEX(exit,1,1),IF('Period booking'!$D$10="Entry SSO",INDEX(entrystorage,1,1),IF('Period booking'!$D$10="Entry non-SSO",INDEX(entry,1,1))))) -> 2.23809208 | L60: =IF('Period booking'!$D$10="Exit SSO",INDEX(exitstorage,$G60,2),IF('Period booking'!$D$10="Exit non-SSO",INDEX(exit,$G60,2),IF('Period booking'!$D$10="Entry SSO",INDEX(entrystorage,$G60,2),IF('Period booking'!$D$10="Entry non-SSO",INDEX(entry,$G60,2))))) -> 1.08023869 | M60: =IF('Period booking'!$D$10="Exit SSO",INDEX(exitstorage,$F60,3),IF('Period booking'!$D$10="Exit non-SSO",INDEX(exit,$F60,3),IF('Period booking'!$D$10="Entry SSO",INDEX(entrystorage,$F60,3),IF('Period booking'!$D$10="Entry non-SSO",INDEX(entry,$F60,3))))) -> 0.50756076 | N60: =IF('Period booking'!$D$10="Exit SSO",INDEX(exitstorage,$F60,4),IF('Period booking'!$D$10="Exit non-SSO",INDEX(exit,$F60,4),IF('Period booking'!$D$10="Entry SSO",INDEX(entrystorage,$F60,4),IF('Period booking'!$D$10="Entry non-SSO",INDEX(entry,$F60,4))))) -> 0.02008627
B61: 2024 | C61: February | D61: =CONCATENATE(B61,C61) -> 2024February | F61: 2 | G61: 1 | H61: =DAY(EOMONTH(DATE(B61,F61,1),0)) -> 29 | I61: =IF(G61<>G60,SUM(H61:H63),I60) -> 91 | K61: =IF('Period booking'!$D$10="Exit SSO",INDEX(exitstorage,1,1),IF('Period booking'!$D$10="Exit non-SSO",INDEX(exit,1,1),IF('Period booking'!$D$10="Entry SSO",INDEX(entrystorage,1,1),IF('Period booking'!$D$10="Entry non-SSO",INDEX(entry,1,1))))) -> 2.23809208 | L61: =IF('Period booking'!$D$10="Exit SSO",INDEX(exitstorage,$G61,2),IF('Period booking'!$D$10="Exit non-SSO",INDEX(exit,$G61,2),IF('Period booking'!$D$10="Entry SSO",INDEX(entrystorage,$G61,2),IF('Period booking'!$D$10="Entry non-SSO",INDEX(entry,$G61,2))))) -> 1.08023869 | M61: =IF('Period booking'!$D$10="Exit SSO",INDEX(exitstorage,$F61,3),IF('Period booking'!$D$10="Exit non-SSO",INDEX(exit,$F61,3),IF('Period booking'!$D$10="Entry SSO",INDEX(entrystorage,$F61,3),IF('Period booking'!$D$10="Entry non-SSO",INDEX(entry,$F61,3))))) -> 0.44342658 | N61: =IF('Period booking'!$D$10="Exit SSO",INDEX(exitstorage,$F61,4),IF('Period booking'!$D$10="Exit non-SSO",INDEX(exit,$F61,4),IF('Period booking'!$D$10="Entry SSO",INDEX(entrystorage,$F61,4),IF('Period booking'!$D$10="Entry non-SSO",INDEX(entry,$F61,4))))) -> 0.01875931
B62: 2024 | C62: March | D62: 2024March | F62: 3 | G62: 1 | H62: 31 | I62: =IF(G62<>G61,SUM(H62:H64),I61) -> 91 | K62: =IF('Period booking'!$D$10="Exit SSO",INDEX(exitstorage,1,1),IF('Period booking'!$D$10="Exit non-SSO",INDEX(exit,1,1),IF('Period booking'!$D$10="Entry SSO",INDEX(entrystorage,1,1),IF('Period booking'!$D$10="Entry non-SSO",INDEX(entry,1,1))))) -> 2.23809208 | L62: =IF('Period booking'!$D$10="Exit SSO",INDEX(exitstorage,$G62,2),IF('Period booking'!$D$10="Exit non-SSO",INDEX(exit,$G62,2),IF('Period booking'!$D$10="Entry SSO",INDEX(entrystorage,$G62,2),IF('Period booking'!$D$10="Entry non-SSO",INDEX(entry,$G62,2))))) -> 1.08023869 | M62: =IF('Period booking'!$D$10="Exit SSO",INDEX(exitstorage,$F62,3),IF('Period booking'!$D$10="Exit non-SSO",INDEX(exit,$F62,3),IF('Period booking'!$D$10="Entry SSO",INDEX(entrystorage,$F62,3),IF('Period booking'!$D$10="Entry non-SSO",INDEX(entry,$F62,3))))) -> 0.34320775 | N62: =IF('Period booking'!$D$10="Exit SSO",INDEX(exitstorage,$F62,4),IF('Period booking'!$D$10="Exit non-SSO",INDEX(exit,$F62,4),IF('Period booking'!$D$10="Entry SSO",INDEX(entrystorage,$F62,4),IF('Period booking'!$D$10="Entry non-SSO",INDEX(entry,$F62,4))))) -> 0.01357989
B63: 2024 | C63: April | D63: 2024April | F63: 4 | G63: 4 | H63: 30 | I63: 91 | K63: =IF('Period booking'!$D$10="Exit SSO",INDEX(exitstorage,1,1),IF('Period booking'!$D$10="Exit non-SSO",INDEX(exit,1,1),IF('Period booking'!$D$10="Entry SSO",INDEX(entrystorage,1,1),IF('Period booking'!$D$10="Entry non-SSO",INDEX(entry,1,1))))) -> 2.23809208 | L63: =IF('Period booking'!$D$10="Exit SSO",INDEX(exitstorage,$G63,2),IF('Period booking'!$D$10="Exit non-SSO",INDEX(exit,$G63,2),IF('Period booking'!$D$10="Entry SSO",INDEX(entrystorage,$G63,2),IF('Period booking'!$D$10="Entry non-SSO",INDEX(entry,$G63,2))))) -> 0.49525431 | M63: =IF('Period booking'!$D$10="Exit SSO",INDEX(exitstorage,$F63,3),IF('Period booking'!$D$10="Exit non-SSO",INDEX(exit,$F63,3),IF('Period booking'!$D$10="Entry SSO",INDEX(entrystorage,$F63,3),IF('Period booking'!$D$10="Entry non-SSO",INDEX(entry,$F63,3))))) -> 0.23637555 | N63: =IF('Period booking'!$D$10="Exit SSO",INDEX(exitstorage,$F63,4),IF('Period booking'!$D$10="Exit non-SSO",INDEX(exit,$F63,4),IF('Period booking'!$D$10="Entry SSO",INDEX(entrystorage,$F63,4),IF('Period booking'!$D$10="Entry non-SSO",INDEX(entry,$F63,4))))) -> 0.00966324
B64: 2024 | C64: May | D64: 2024May | F64: 5 | G64: 4 | H64: 31 | I64: 91 | K64: =IF('Period booking'!$D$10="Exit SSO",INDEX(exitstorage,1,1),IF('Period booking'!$D$10="Exit non-SSO",INDEX(exit,1,1),IF('Period booking'!$D$10="Entry SSO",INDEX(entrystorage,1,1),IF('Period booking'!$D$10="Entry non-SSO",INDEX(entry,1,1))))) -> 2.23809208 | L64: =IF('Period booking'!$D$10="Exit SSO",INDEX(exitstorage,$G64,2),IF('Period booking'!$D$10="Exit non-SSO",INDEX(exit,$G64,2),IF('Period booking'!$D$10="Entry SSO",INDEX(entrystorage,$G64,2),IF('Period booking'!$D$10="Entry non-SSO",INDEX(entry,$G64,2))))) -> 0.49525431 | M64: =IF('Period booking'!$D$10="Exit SSO",INDEX(exitstorage,$F64,3),IF('Period booking'!$D$10="Exit non-SSO",INDEX(exit,$F64,3),IF('Period booking'!$D$10="Entry SSO",INDEX(entrystorage,$F64,3),IF('Period booking'!$D$10="Entry non-SSO",INDEX(entry,$F64,3))))) -> 0.19221909 | N64: =IF('Period booking'!$D$10="Exit SSO",INDEX(exitstorage,$F64,4),IF('Period booking'!$D$10="Exit non-SSO",INDEX(exit,$F64,4),IF('Period booking'!$D$10="Entry SSO",INDEX(entrystorage,$F64,4),IF('Period booking'!$D$10="Entry non-SSO",INDEX(entry,$F64,4))))) -> 0.00760859
B65: 2024 | C65: June | D65: 2024June | F65: 6 | G65: 4 | H65: 30 | I65: 91 | K65: =IF('Period booking'!$D$10="Exit SSO",INDEX(exitstorage,1,1),IF('Period booking'!$D$10="Exit non-SSO",INDEX(exit,1,1),IF('Period booking'!$D$10="Entry SSO",INDEX(entrystorage,1,1),IF('Period booking'!$D$10="Entry non-SSO",INDEX(entry,1,1))))) -> 2.23809208 | L65: =IF('Period booking'!$D$10="Exit SSO",INDEX(exitstorage,$G65,2),IF('Period booking'!$D$10="Exit non-SSO",INDEX(exit,$G65,2),IF('Period booking'!$D$10="Entry SSO",INDEX(entrystorage,$G65,2),IF('Period booking'!$D$10="Entry non-SSO",INDEX(entry,$G65,2))))) -> 0.49525431 | M65: =IF('Period booking'!$D$10="Exit SSO",INDEX(exitstorage,$F65,3),IF('Period booking'!$D$10="Exit non-SSO",INDEX(exit,$F65,3),IF('Period booking'!$D$10="Entry SSO",INDEX(entrystorage,$F65,3),IF('Period booking'!$D$10="Entry non-SSO",INDEX(entry,$F65,3))))) -> 0.16510515 | N65: =IF('Period booking'!$D$10="Exit SSO",INDEX(exitstorage,$F65,4),IF('Period booking'!$D$10="Exit non-SSO",INDEX(exit,$F65,4),IF('Period booking'!$D$10="Entry SSO",INDEX(entrystorage,$F65,4),IF('Period booking'!$D$10="Entry non-SSO",INDEX(entry,$F65,4))))) -> 0.0067525
B66: 2024 | C66: July | D66: 2024July | F66: 7 | G66: 7 | H66: 31 | I66: 92 | K66: =IF('Period booking'!$D$10="Exit SSO",INDEX(exitstorage,1,1),IF('Period booking'!$D$10="Exit non-SSO",INDEX(exit,1,1),IF('Period booking'!$D$10="Entry SSO",INDEX(entrystorage,1,1),IF('Period booking'!$D$10="Entry non-SSO",INDEX(entry,1,1))))) -> 2.23809208 | L66: =IF('Period booking'!$D$10="Exit SSO",INDEX(exitstorage,$G66,2),IF('Period booking'!$D$10="Exit non-SSO",INDEX(exit,$G66,2),IF('Period booking'!$D$10="Entry SSO",INDEX(entrystorage,$G66,2),IF('Period booking'!$D$10="Entry non-SSO",INDEX(entry,$G66,2))))) -> 0.38818056 | M66: =IF('Period booking'!$D$10="Exit SSO",INDEX(exitstorage,$F66,3),IF('Period booking'!$D$10="Exit non-SSO",INDEX(exit,$F66,3),IF('Period booking'!$D$10="Entry SSO",INDEX(entrystorage,$F66,3),IF('Period booking'!$D$10="Entry non-SSO",INDEX(entry,$F66,3))))) -> 0.15781301 | N66: =IF('Period booking'!$D$10="Exit SSO",INDEX(exitstorage,$F66,4),IF('Period booking'!$D$10="Exit non-SSO",INDEX(exit,$F66,4),IF('Period booking'!$D$10="Entry SSO",INDEX(entrystorage,$F66,4),IF('Period booking'!$D$10="Entry non-SSO",INDEX(entry,$F66,4))))) -> 0.00623883
B67: 2024 | C67: August | D67: 2024August | F67: 8 | G67: 7 | H67: 31 | I67: 92 | K67: =IF('Period booking'!$D$10="Exit SSO",INDEX(exitstorage,1,1),IF('Period booking'!$D$10="Exit non-SSO",INDEX(exit,1,1),IF('Period booking'!$D$10="Entry SSO",INDEX(entrystorage,1,1),IF('Period booking'!$D$10="Entry non-SSO",INDEX(entry,1,1))))) -> 2.23809208 | L67: =IF('Period booking'!$D$10="Exit SSO",INDEX(exitstorage,$G67,2),IF('Period booking'!$D$10="Exit non-SSO",INDEX(exit,$G67,2),IF('Period booking'!$D$10="Entry SSO",INDEX(entrystorage,$G67,2),IF('Period booking'!$D$10="Entry non-SSO",INDEX(entry,$G67,2))))) -> 0.38818056 | M67: =IF('Period booking'!$D$10="Exit SSO",INDEX(exitstorage,$F67,3),IF('Period booking'!$D$10="Exit non-SSO",INDEX(exit,$F67,3),IF('Period booking'!$D$10="Entry SSO",INDEX(entrystorage,$F67,3),IF('Period booking'!$D$10="Entry non-SSO",INDEX(entry,$F67,3))))) -> 0.15013562 | N67: =IF('Period booking'!$D$10="Exit SSO",INDEX(exitstorage,$F67,4),IF('Period booking'!$D$10="Exit non-SSO",INDEX(exit,$F67,4),IF('Period booking'!$D$10="Entry SSO",INDEX(entrystorage,$F67,4),IF('Period booking'!$D$10="Entry non-SSO",INDEX(entry,$F67,4))))) -> 0.0059392
B68: 2024 | C68: September | D68: 2024September | F68: 9 | G68: 7 | H68: 30 | I68: 92 | K68: =IF('Period booking'!$D$10="Exit SSO",INDEX(exitstorage,1,1),IF('Period booking'!$D$10="Exit non-SSO",INDEX(exit,1,1),IF('Period booking'!$D$10="Entry SSO",INDEX(entrystorage,1,1),IF('Period booking'!$D$10="Entry non-SSO",INDEX(entry,1,1))))) -> 2.23809208 | L68: =IF('Period booking'!$D$10="Exit SSO",INDEX(exitstorage,$G68,2),IF('Period booking'!$D$10="Exit non-SSO",INDEX(exit,$G68,2),IF('Period booking'!$D$10="Entry SSO",INDEX(entrystorage,$G68,2),IF('Period booking'!$D$10="Entry non-SSO",INDEX(entry,$G68,2))))) -> 0.38818056 | M68: =IF('Period booking'!$D$10="Exit SSO",INDEX(exitstorage,$F68,3),IF('Period booking'!$D$10="Exit non-SSO",INDEX(exit,$F68,3),IF('Period booking'!$D$10="Entry SSO",INDEX(entrystorage,$F68,3),IF('Period booking'!$D$10="Entry non-SSO",INDEX(entry,$F68,3))))) -> 0.1579506 | N68: =IF('Period booking'!$D$10="Exit SSO",INDEX(exitstorage,$F68,4),IF('Period booking'!$D$10="Exit non-SSO",INDEX(exit,$F68,4),IF('Period booking'!$D$10="Entry SSO",INDEX(entrystorage,$F68,4),IF('Period booking'!$D$10="Entry non-SSO",INDEX(entry,$F68,4))))) -> 0.00646356
B69: 2024 | C69: October | D69: 2024October | F69: 10 | G69: 10 | H69: 31 | I69: 92 | K69: =IF('Period booking'!$D$10="Exit SSO",INDEX(exitstorage,1,1),IF('Period booking'!$D$10="Exit non-SSO",INDEX(exit,1,1),IF('Period booking'!$D$10="Entry SSO",INDEX(entrystorage,1,1),IF('Period booking'!$D$10="Entry non-SSO",INDEX(entry,1,1))))) -> 2.23809208 | L69: =IF('Period booking'!$D$10="Exit SSO",INDEX(exitstorage,$G69,2),IF('Period booking'!$D$10="Exit non-SSO",INDEX(exit,$G69,2),IF('Period booking'!$D$10="Entry SSO",INDEX(entrystorage,$G69,2),IF('Period booking'!$D$10="Entry non-SSO",INDEX(entry,$G69,2))))) -> 0.83191595 | M69: =IF('Period booking'!$D$10="Exit SSO",INDEX(exitstorage,$F69,3),IF('Period booking'!$D$10="Exit non-SSO",INDEX(exit,$F69,3),IF('Period booking'!$D$10="Entry SSO",INDEX(entrystorage,$F69,3),IF('Period booking'!$D$10="Entry non-SSO",INDEX(entry,$F69,3))))) -> 0.21183908 | N69: =IF('Period booking'!$D$10="Exit SSO",INDEX(exitstorage,$F69,4),IF('Period booking'!$D$10="Exit non-SSO",INDEX(exit,$F69,4),IF('Period booking'!$D$10="Entry SSO",INDEX(entrystorage,$F69,4),IF('Period booking'!$D$10="Entry non-SSO",INDEX(entry,$F69,4))))) -> 0.00838979
B70: 2024 | C70: November | D70: 2024November | F70: 11 | G70: 10 | H70: 30 | I70: 92 | K70: =IF('Period booking'!$D$10="Exit SSO",INDEX(exitstorage,1,1),IF('Period booking'!$D$10="Exit non-SSO",INDEX(exit,1,1),IF('Period booking'!$D$10="Entry SSO",INDEX(entrystorage,1,1),IF('Period booking'!$D$10="Entry non-SSO",INDEX(entry,1,1))))) -> 2.23809208 | L70: =IF('Period booking'!$D$10="Exit SSO",INDEX(exitstorage,$G70,2),IF('Period booking'!$D$10="Exit non-SSO",INDEX(exit,$G70,2),IF('Period booking'!$D$10="Entry SSO",INDEX(entrystorage,$G70,2),IF('Period booking'!$D$10="Entry non-SSO",INDEX(entry,$G70,2))))) -> 0.83191595 | M70: =IF('Period booking'!$D$10="Exit SSO",INDEX(exitstorage,$F70,3),IF('Period booking'!$D$10="Exit non-SSO",INDEX(exit,$F70,3),IF('Period booking'!$D$10="Entry SSO",INDEX(entrystorage,$F70,3),IF('Period booking'!$D$10="Entry non-SSO",INDEX(entry,$F70,3))))) -> 0.33213653 | N70: =IF('Period booking'!$D$10="Exit SSO",INDEX(exitstorage,$F70,4),IF('Period booking'!$D$10="Exit non-SSO",INDEX(exit,$F70,4),IF('Period booking'!$D$10="Entry SSO",INDEX(entrystorage,$F70,4),IF('Period booking'!$D$10="Entry non-SSO",INDEX(entry,$F70,4))))) -> 0.01357989
B71: 2024 | C71: December | D71: 2024December | F71: 12 | G71: 10 | H71: 31 | I71: 92 | K71: =IF('Period booking'!$D$10="Exit SSO",INDEX(exitstorage,1,1),IF('Period booking'!$D$10="Exit non-SSO",INDEX(exit,1,1),IF('Period booking'!$D$10="Entry SSO",INDEX(entrystorage,1,1),IF('Period booking'!$D$10="Entry non-SSO",INDEX(entry,1,1))))) -> 2.23809208 | L71: =IF('Period booking'!$D$10="Exit SSO",INDEX(exitstorage,$G71,2),IF('Period booking'!$D$10="Exit non-SSO",INDEX(exit,$G71,2),IF('Period booking'!$D$10="Entry SSO",INDEX(entrystorage,$G71,2),IF('Period booking'!$D$10="Entry non-SSO",INDEX(entry,$G71,2))))) -> 0.83191595 | M71: =IF('Period booking'!$D$10="Exit SSO",INDEX(exitstorage,$F71,3),IF('Period booking'!$D$10="Exit non-SSO",INDEX(exit,$F71,3),IF('Period booking'!$D$10="Entry SSO",INDEX(entrystorage,$F71,3),IF('Period booking'!$D$10="Entry non-SSO",INDEX(entry,$F71,3))))) -> 0.45353469 | N71: =IF('Period booking'!$D$10="Exit SSO",INDEX(exitstorage,$F71,4),IF('Period booking'!$D$10="Exit non-SSO",INDEX(exit,$F71,4),IF('Period booking'!$D$10="Entry SSO",INDEX(entrystorage,$F71,4),IF('Period booking'!$D$10="Entry non-SSO",INDEX(entry,$F71,4))))) -> 0.01794601
B72: =YEAR(L$8+366) -> 2025 | C72: January | D72: 2025January | F72: 1 | G72: 1 | H72: 31 | I72: 90 | K72: =IF('Period booking'!$D$10="Exit SSO",INDEX(exitstorage,1,1),IF('Period booking'!$D$10="Exit non-SSO",INDEX(exit,1,1),IF('Period booking'!$D$10="Entry SSO",INDEX(entrystorage,1,1),IF('Period booking'!$D$10="Entry non-SSO",INDEX(entry,1,1))))) -> 2.23809208 | L72: =IF('Period booking'!$D$10="Exit SSO",INDEX(exitstorage,$G72,2),IF('Period booking'!$D$10="Exit non-SSO",INDEX(exit,$G72,2),IF('Period booking'!$D$10="Entry SSO",INDEX(entrystorage,$G72,2),IF('Period booking'!$D$10="Entry non-SSO",INDEX(entry,$G72,2))))) -> 1.08023869 | M72: =IF('Period booking'!$D$10="Exit SSO",INDEX(exitstorage,$F72,3),IF('Period booking'!$D$10="Exit non-SSO",INDEX(exit,$F72,3),IF('Period booking'!$D$10="Entry SSO",INDEX(entrystorage,$F72,3),IF('Period booking'!$D$10="Entry non-SSO",INDEX(entry,$F72,3))))) -> 0.50756076 | N72: =IF('Period booking'!$D$10="Exit SSO",INDEX(exitstorage,$F72,4),IF('Period booking'!$D$10="Exit non-SSO",INDEX(exit,$F72,4),IF('Period booking'!$D$10="Entry SSO",INDEX(entrystorage,$F72,4),IF('Period booking'!$D$10="Entry non-SSO",INDEX(entry,$F72,4))))) -> 0.02008627
B73: 2025 | C73: February | D73: 2025February | F73: 2 | G73: 1 | H73: 28 | I73: 90 | K73: =IF('Period booking'!$D$10="Exit SSO",INDEX(exitstorage,1,1),IF('Period booking'!$D$10="Exit non-SSO",INDEX(exit,1,1),IF('Period booking'!$D$10="Entry SSO",INDEX(entrystorage,1,1),IF('Period booking'!$D$10="Entry non-SSO",INDEX(entry,1,1))))) -> 2.23809208 | L73: =IF('Period booking'!$D$10="Exit SSO",INDEX(exitstorage,$G73,2),IF('Period booking'!$D$10="Exit non-SSO",INDEX(exit,$G73,2),IF('Period booking'!$D$10="Entry SSO",INDEX(entrystorage,$G73,2),IF('Period booking'!$D$10="Entry non-SSO",INDEX(entry,$G73,2))))) -> 1.08023869 | M73: =IF('Period booking'!$D$10="Exit SSO",INDEX(exitstorage,$F73,3),IF('Period booking'!$D$10="Exit non-SSO",INDEX(exit,$F73,3),IF('Period booking'!$D$10="Entry SSO",INDEX(entrystorage,$F73,3),IF('Period booking'!$D$10="Entry non-SSO",INDEX(entry,$F73,3))))) -> 0.44342658 | N73: =IF('Period booking'!$D$10="Exit SSO",INDEX(exitstorage,$F73,4),IF('Period booking'!$D$10="Exit non-SSO",INDEX(exit,$F73,4),IF('Period booking'!$D$10="Entry SSO",INDEX(entrystorage,$F73,4),IF('Period booking'!$D$10="Entry non-SSO",INDEX(entry,$F73,4))))) -> 0.01875931
B74: 2025 | C74: March | D74: 2025March | F74: 3 | G74: 1 | H74: 31 | I74: 90 | K74: =IF('Period booking'!$D$10="Exit SSO",INDEX(exitstorage,1,1),IF('Period booking'!$D$10="Exit non-SSO",INDEX(exit,1,1),IF('Period booking'!$D$10="Entry SSO",INDEX(entrystorage,1,1),IF('Period booking'!$D$10="Entry non-SSO",INDEX(entry,1,1))))) -> 2.23809208 | L74: =IF('Period booking'!$D$10="Exit SSO",INDEX(exitstorage,$G74,2),IF('Period booking'!$D$10="Exit non-SSO",INDEX(exit,$G74,2),IF('Period booking'!$D$10="Entry SSO",INDEX(entrystorage,$G74,2),IF('Period booking'!$D$10="Entry non-SSO",INDEX(entry,$G74,2))))) -> 1.08023869 | M74: =IF('Period booking'!$D$10="Exit SSO",INDEX(exitstorage,$F74,3),IF('Period booking'!$D$10="Exit non-SSO",INDEX(exit,$F74,3),IF('Period booking'!$D$10="Entry SSO",INDEX(entrystorage,$F74,3),IF('Period booking'!$D$10="Entry non-SSO",INDEX(entry,$F74,3))))) -> 0.34320775 | N74: =IF('Period booking'!$D$10="Exit SSO",INDEX(exitstorage,$F74,4),IF('Period booking'!$D$10="Exit non-SSO",INDEX(exit,$F74,4),IF('Period booking'!$D$10="Entry SSO",INDEX(entrystorage,$F74,4),IF('Period booking'!$D$10="Entry non-SSO",INDEX(entry,$F74,4))))) -> 0.01357989
B75: 2025 | C75: April | D75: 2025April | F75: 4 | G75: 4 | H75: 30 | I75: 91 | K75: =IF('Period booking'!$D$10="Exit SSO",INDEX(exitstorage,1,1),IF('Period booking'!$D$10="Exit non-SSO",INDEX(exit,1,1),IF('Period booking'!$D$10="Entry SSO",INDEX(entrystorage,1,1),IF('Period booking'!$D$10="Entry non-SSO",INDEX(entry,1,1))))) -> 2.23809208 | L75: =IF('Period booking'!$D$10="Exit SSO",INDEX(exitstorage,$G75,2),IF('Period booking'!$D$10="Exit non-SSO",INDEX(exit,$G75,2),IF('Period booking'!$D$10="Entry SSO",INDEX(entrystorage,$G75,2),IF('Period booking'!$D$10="Entry non-SSO",INDEX(entry,$G75,2))))) -> 0.49525431 | M75: =IF('Period booking'!$D$10="Exit SSO",INDEX(exitstorage,$F75,3),IF('Period booking'!$D$10="Exit non-SSO",INDEX(exit,$F75,3),IF('Period booking'!$D$10="Entry SSO",INDEX(entrystorage,$F75,3),IF('Period booking'!$D$10="Entry non-SSO",INDEX(entry,$F75,3))))) -> 0.23637555 | N75: =IF('Period booking'!$D$10="Exit SSO",INDEX(exitstorage,$F75,4),IF('Period booking'!$D$10="Exit non-SSO",INDEX(exit,$F75,4),IF('Period booking'!$D$10="Entry SSO",INDEX(entrystorage,$F75,4),IF('Period booking'!$D$10="Entry non-SSO",INDEX(entry,$F75,4))))) -> 0.00966324
B76: 2025 | C76: May | D76: 2025May | F76: 5 | G76: 4 | H76: 31 | I76: 91 | K76: =IF('Period booking'!$D$10="Exit SSO",INDEX(exitstorage,1,1),IF('Period booking'!$D$10="Exit non-SSO",INDEX(exit,1,1),IF('Period booking'!$D$10="Entry SSO",INDEX(entrystorage,1,1),IF('Period booking'!$D$10="Entry non-SSO",INDEX(entry,1,1))))) -> 2.23809208 | L76: =IF('Period booking'!$D$10="Exit SSO",INDEX(exitstorage,$G76,2),IF('Period booking'!$D$10="Exit non-SSO",INDEX(exit,$G76,2),IF('Period booking'!$D$10="Entry SSO",INDEX(entrystorage,$G76,2),IF('Period booking'!$D$10="Entry non-SSO",INDEX(entry,$G76,2))))) -> 0.49525431 | M76: =IF('Period booking'!$D$10="Exit SSO",INDEX(exitstorage,$F76,3),IF('Period booking'!$D$10="Exit non-SSO",INDEX(exit,$F76,3),IF('Period booking'!$D$10="Entry SSO",INDEX(entrystorage,$F76,3),IF('Period booking'!$D$10="Entry non-SSO",INDEX(entry,$F76,3))))) -> 0.19221909 | N76: =IF('Period booking'!$D$10="Exit SSO",INDEX(exitstorage,$F76,4),IF('Period booking'!$D$10="Exit non-SSO",INDEX(exit,$F76,4),IF('Period booking'!$D$10="Entry SSO",INDEX(entrystorage,$F76,4),IF('Period booking'!$D$10="Entry non-SSO",INDEX(entry,$F76,4))))) -> 0.00760859
B77: 2025 | C77: June | D77: 2025June | F77: 6 | G77: 4 | H77: 30 | I77: 91 | K77: =IF('Period booking'!$D$10="Exit SSO",INDEX(exitstorage,1,1),IF('Period booking'!$D$10="Exit non-SSO",INDEX(exit,1,1),IF('Period booking'!$D$10="Entry SSO",INDEX(entrystorage,1,1),IF('Period booking'!$D$10="Entry non-SSO",INDEX(entry,1,1))))) -> 2.23809208 | L77: =IF('Period booking'!$D$10="Exit SSO",INDEX(exitstorage,$G77,2),IF('Period booking'!$D$10="Exit non-SSO",INDEX(exit,$G77,2),IF('Period booking'!$D$10="Entry SSO",INDEX(entrystorage,$G77,2),IF('Period booking'!$D$10="Entry non-SSO",INDEX(entry,$G77,2))))) -> 0.49525431 | M77: =IF('Period booking'!$D$10="Exit SSO",INDEX(exitstorage,$F77,3),IF('Period booking'!$D$10="Exit non-SSO",INDEX(exit,$F77,3),IF('Period booking'!$D$10="Entry SSO",INDEX(entrystorage,$F77,3),IF('Period booking'!$D$10="Entry non-SSO",INDEX(entry,$F77,3))))) -> 0.16510515 | N77: =IF('Period booking'!$D$10="Exit SSO",INDEX(exitstorage,$F77,4),IF('Period booking'!$D$10="Exit non-SSO",INDEX(exit,$F77,4),IF('Period booking'!$D$10="Entry SSO",INDEX(entrystorage,$F77,4),IF('Period booking'!$D$10="Entry non-SSO",INDEX(entry,$F77,4))))) -> 0.0067525
B78: 2025 | C78: July | D78: 2025July | F78: 7 | G78: 7 | H78: 31 | I78: 92 | K78: =IF('Period booking'!$D$10="Exit SSO",INDEX(exitstorage,1,1),IF('Period booking'!$D$10="Exit non-SSO",INDEX(exit,1,1),IF('Period booking'!$D$10="Entry SSO",INDEX(entrystorage,1,1),IF('Period booking'!$D$10="Entry non-SSO",INDEX(entry,1,1))))) -> 2.23809208 | L78: =IF('Period booking'!$D$10="Exit SSO",INDEX(exitstorage,$G78,2),IF('Period booking'!$D$10="Exit non-SSO",INDEX(exit,$G78,2),IF('Period booking'!$D$10="Entry SSO",INDEX(entrystorage,$G78,2),IF('Period booking'!$D$10="Entry non-SSO",INDEX(entry,$G78,2))))) -> 0.38818056 | M78: =IF('Period booking'!$D$10="Exit SSO",INDEX(exitstorage,$F78,3),IF('Period booking'!$D$10="Exit non-SSO",INDEX(exit,$F78,3),IF('Period booking'!$D$10="Entry SSO",INDEX(entrystorage,$F78,3),IF('Period booking'!$D$10="Entry non-SSO",INDEX(entry,$F78,3))))) -> 0.15781301 | N78: =IF('Period booking'!$D$10="Exit SSO",INDEX(exitstorage,$F78,4),IF('Period booking'!$D$10="Exit non-SSO",INDEX(exit,$F78,4),IF('Period booking'!$D$10="Entry SSO",INDEX(entrystorage,$F78,4),IF('Period booking'!$D$10="Entry non-SSO",INDEX(entry,$F78,4))))) -> 0.00623883
B79: 2025 | C79: August | D79: 2025August | F79: 8 | G79: 7 | H79: 31 | I79: 92 | K79: =IF('Period booking'!$D$10="Exit SSO",INDEX(exitstorage,1,1),IF('Period booking'!$D$10="Exit non-SSO",INDEX(exit,1,1),IF('Period booking'!$D$10="Entry SSO",INDEX(entrystorage,1,1),IF('Period booking'!$D$10="Entry non-SSO",INDEX(entry,1,1))))) -> 2.23809208 | L79: =IF('Period booking'!$D$10="Exit SSO",INDEX(exitstorage,$G79,2),IF('Period booking'!$D$10="Exit non-SSO",INDEX(exit,$G79,2),IF('Period booking'!$D$10="Entry SSO",INDEX(entrystorage,$G79,2),IF('Period booking'!$D$10="Entry non-SSO",INDEX(entry,$G79,2))))) -> 0.38818056 | M79: =IF('Period booking'!$D$10="Exit SSO",INDEX(exitstorage,$F79,3),IF('Period booking'!$D$10="Exit non-SSO",INDEX(exit,$F79,3),IF('Period booking'!$D$10="Entry SSO",INDEX(entrystorage,$F79,3),IF('Period booking'!$D$10="Entry non-SSO",INDEX(entry,$F79,3))))) -> 0.15013562 | N79: =IF('Period booking'!$D$10="Exit SSO",INDEX(exitstorage,$F79,4),IF('Period booking'!$D$10="Exit non-SSO",INDEX(exit,$F79,4),IF('Period booking'!$D$10="Entry SSO",INDEX(entrystorage,$F79,4),IF('Period booking'!$D$10="Entry non-SSO",INDEX(entry,$F79,4))))) -> 0.0059392
B80: 2025 | C80: September | D80: 2025September | F80: 9 | G80: 7 | H80: 30 | I80: 92 | K80: =IF('Period booking'!$D$10="Exit SSO",INDEX(exitstorage,1,1),IF('Period booking'!$D$10="Exit non-SSO",INDEX(exit,1,1),IF('Period booking'!$D$10="Entry SSO",INDEX(entrystorage,1,1),IF('Period booking'!$D$10="Entry non-SSO",INDEX(entry,1,1))))) -> 2.23809208 | L80: =IF('Period booking'!$D$10="Exit SSO",INDEX(exitstorage,$G80,2),IF('Period booking'!$D$10="Exit non-SSO",INDEX(exit,$G80,2),IF('Period booking'!$D$10="Entry SSO",INDEX(entrystorage,$G80,2),IF('Period booking'!$D$10="Entry non-SSO",INDEX(entry,$G80,2))))) -> 0.38818056 | M80: =IF('Period booking'!$D$10="Exit SSO",INDEX(exitstorage,$F80,3),IF('Period booking'!$D$10="Exit non-SSO",INDEX(exit,$F80,3),IF('Period booking'!$D$10="Entry SSO",INDEX(entrystorage,$F80,3),IF('Period booking'!$D$10="Entry non-SSO",INDEX(entry,$F80,3))))) -> 0.1579506 | N80: =IF('Period booking'!$D$10="Exit SSO",INDEX(exitstorage,$F80,4),IF('Period booking'!$D$10="Exit non-SSO",INDEX(exit,$F80,4),IF('Period booking'!$D$10="Entry SSO",INDEX(entrystorage,$F80,4),IF('Period booking'!$D$10="Entry non-SSO",INDEX(entry,$F80,4))))) -> 0.00646356
B81: 2025 | C81: October | D81: 2025October | F81: 10 | G81: 10 | H81: 31 | I81: 92 | K81: =IF('Period booking'!$D$10="Exit SSO",INDEX(exitstorage,1,1),IF('Period booking'!$D$10="Exit non-SSO",INDEX(exit,1,1),IF('Period booking'!$D$10="Entry SSO",INDEX(entrystorage,1,1),IF('Period booking'!$D$10="Entry non-SSO",INDEX(entry,1,1))))) -> 2.23809208 | L81: =IF('Period booking'!$D$10="Exit SSO",INDEX(exitstorage,$G81,2),IF('Period booking'!$D$10="Exit non-SSO",INDEX(exit,$G81,2),IF('Period booking'!$D$10="Entry SSO",INDEX(entrystorage,$G81,2),IF('Period booking'!$D$10="Entry non-SSO",INDEX(entry,$G81,2))))) -> 0.83191595 | M81: =IF('Period booking'!$D$10="Exit SSO",INDEX(exitstorage,$F81,3),IF('Period booking'!$D$10="Exit non-SSO",INDEX(exit,$F81,3),IF('Period booking'!$D$10="Entry SSO",INDEX(entrystorage,$F81,3),IF('Period booking'!$D$10="Entry non-SSO",INDEX(entry,$F81,3))))) -> 0.21183908 | N81: =IF('Period booking'!$D$10="Exit SSO",INDEX(exitstorage,$F81,4),IF('Period booking'!$D$10="Exit non-SSO",INDEX(exit,$F81,4),IF('Period booking'!$D$10="Entry SSO",INDEX(entrystorage,$F81,4),IF('Period booking'!$D$10="Entry non-SSO",INDEX(entry,$F81,4))))) -> 0.00838979
B82: 2025 | C82: November | D82: 2025November | F82: 11 | G82: 10 | H82: 30 | I82: =IF(G82<>G81,SUM(F84:F84),I81) -> 92 | K82: =IF('Period booking'!$D$10="Exit SSO",INDEX(exitstorage,1,1),IF('Period booking'!$D$10="Exit non-SSO",INDEX(exit,1,1),IF('Period booking'!$D$10="Entry SSO",INDEX(entrystorage,1,1),IF('Period booking'!$D$10="Entry non-SSO",INDEX(entry,1,1))))) -> 2.23809208 | L82: =IF('Period booking'!$D$10="Exit SSO",INDEX(exitstorage,$G82,2),IF('Period booking'!$D$10="Exit non-SSO",INDEX(exit,$G82,2),IF('Period booking'!$D$10="Entry SSO",INDEX(entrystorage,$G82,2),IF('Period booking'!$D$10="Entry non-SSO",INDEX(entry,$G82,2))))) -> 0.83191595 | M82: =IF('Period booking'!$D$10="Exit SSO",INDEX(exitstorage,$F82,3),IF('Period booking'!$D$10="Exit non-SSO",INDEX(exit,$F82,3),IF('Period booking'!$D$10="Entry SSO",INDEX(entrystorage,$F82,3),IF('Period booking'!$D$10="Entry non-SSO",INDEX(entry,$F82,3))))) -> 0.33213653 | N82: =IF('Period booking'!$D$10="Exit SSO",INDEX(exitstorage,$F82,4),IF('Period booking'!$D$10="Exit non-SSO",INDEX(exit,$F82,4),IF('Period booking'!$D$10="Entry SSO",INDEX(entrystorage,$F82,4),IF('Period booking'!$D$10="Entry non-SSO",INDEX(entry,$F82,4))))) -> 0.01357989
B83: 2025 | C83: December | D83: 2025December | F83: 12 | G83: 10 | H83: 31 | I83: =IF(G83<>G82,SUM(F84:F85),I82) -> 92 | K83: =IF('Period booking'!$D$10="Exit SSO",INDEX(exitstorage,1,1),IF('Period booking'!$D$10="Exit non-SSO",INDEX(exit,1,1),IF('Period booking'!$D$10="Entry SSO",INDEX(entrystorage,1,1),IF('Period booking'!$D$10="Entry non-SSO",INDEX(entry,1,1))))) -> 2.23809208 | L83: =IF('Period booking'!$D$10="Exit SSO",INDEX(exitstorage,$G83,2),IF('Period booking'!$D$10="Exit non-SSO",INDEX(exit,$G83,2),IF('Period booking'!$D$10="Entry SSO",INDEX(entrystorage,$G83,2),IF('Period booking'!$D$10="Entry non-SSO",INDEX(entry,$G83,2))))) -> 0.83191595 | M83: =IF('Period booking'!$D$10="Exit SSO",INDEX(exitstorage,$F83,3),IF('Period booking'!$D$10="Exit non-SSO",INDEX(exit,$F83,3),IF('Period booking'!$D$10="Entry SSO",INDEX(entrystorage,$F83,3),IF('Period booking'!$D$10="Entry non-SSO",INDEX(entry,$F83,3))))) -> 0.45353469 | N83: =IF('Period booking'!$D$10="Exit SSO",INDEX(exitstorage,$F83,4),IF('Period booking'!$D$10="Exit non-SSO",INDEX(exit,$F83,4),IF('Period booking'!$D$10="Entry SSO",INDEX(entrystorage,$F83,4),IF('Period booking'!$D$10="Entry non-SSO",INDEX(entry,$F83,4))))) -> 0.01794601

Sheet Multipliers and SF (hidden)
B4: MULTIPLIERS AND SEASONAL FACTORS
B6: Multipliers (M)
B8: Quarterly multiplier | C8: M-Q | D8: 1.25
B9: Monthly multiplier | C9: M-M | D9: 1.5
B10: Daily multiplier | C10: M-DA | D10: 1.75
B11: Within-day multiplier | C11: M-WID | D11: 1.75
B13: Seasonal factors (SF) | D13: Month | E13: Day | F13: WID
B15: SF - Jan | D15: 1.785 | E15: 1.877 | F15: 1.877
B16: SF - Feb | D16: 1.667 | E16: 1.753 | F16: 1.753
B17: SF - March | D17: 1.207 | E17: 1.269 | F17: 1.269
B18: SF - April | D18: 0.859 | E18: 0.903 | F18: 0.903
B19: SF - May | D19: 0.676 | E19: 0.711 | F19: 0.711
B20: SF - June | D20: 0.600 | E20: 0.631 | F20: 0.631
B21: SF - July | D21: 0.555 | E21: 0.583 | F21: 0.583
B22: SF - August | D22: 0.528 | E22: 0.555 | F22: 0.555
B23: SF - Sept | D23: 0.574 | E23: 0.604 | F23: 0.604
B24: SF - Oct | D24: 0.745 | E24: 0.784 | F24: 0.784
B25: SF - Nov | D25: 1.207 | E25: 1.269 | F25: 1.269
B26: SF - Dec | D26: 1.595 | E26: 1.677 | F26: 1.677
B28: SF - Jan - March | D28: 1.553
B29: SF - April - June | D29: 0.712
B30: SF - July - Sept | D30: 0.552
B31: SF - Oct - Dec | D31: 1.183

Sheet Validation (hidden)
B4: VALIDATION POSTAGE STAMP POINTS
C6: Entry non-SSO
C7: Entry SSO
C8: Exit non-SSO
C9: Exit SSO
B11: VALIDATION FEBRUARY IN LEAP YEAR
C13: Yes
C14: No
